{"text_format":"1","workbook":"xlsx","n_sheets":4,"sheets":["Données","A porter seul","A partager","A donner"],"not_rendered":{"charts":0,"images":0,"macros":1,"external_links":0,"defined_names":1,"comments":0,"pivot_tables":0},"unopened":[],"bounds":{"document_bytes":16777216,"sheet_cells":100000,"rows_first":2000,"rows_last":500,"rows_between":2000,"halvings":0,"cell_chars":16384,"cell_head_chars":4096},"cells_cut":0,"cells_raw":0,"read":"whole","date_system":"1900"}

{"sheet":"Données","index":0,"n_rows":242,"n_cols":20,"rows_kept":242,"cut":false,"hidden":false,"merged":[]}
[]
[null,"Tableau automatique : Transpose"]
[null,"Costume n°","Nom du costume/rôle endossé","Symbole qui représente ce costume (figurine, vêtements, objet distinctif)","Utilité sur 10 / objectif visé\n(0 = inutile, 10 = indispensable)","Pourquoi ce costume est utile / objectif ?\n(lier ce costume à une valeur haute = qui augmente votre énergie)","Poids ressenti sur 10\n(0 = très léger, 10 = trop lourd)","Quand doit-il être porté ? \n(Situations, contextes, lieux, horaires précis, niveau d'énergie requis, etc.)","Avec qui doit-il être porté ?\n(membres de votre famille, amis, collègues, supérieurs, etc.)","Combien d’heures doit-il être porté min. / max. par jour/ semaine/ mois/ année ?\n(pour atteindre l'objectif)","Action 1","Action 2","Action 3","Action 4","Action 5","Action 6","Action 7","Action 8","Action 9","Action 10"]
[null,1,"Leader","Cravate",10,"Car",10,"- En réunion\n- En rdv avec les clients X et F","Avec les membres du CA","5h max./jour","Répondre aux mails & aux appels importants","Présenter les résultats de l'entreprise","Définir et valider la vision/stratégie à moyen et à long terme pour l'entreprise","Gérer des rdv avec les clients/partenaires/fournisseurs/ etc.","Appeler des clients/ partenaires/ fournisseurs/ etc.","M'informer des tendances actuelles et futures qui pourraient impacter l'entreprise","Me former : min. 1 formation /an","Réflexions et discusssions stratégiques","A compléter costume 1 Action 9","A compléter costume 1 Action 10"]
[null,2,"Manager (en interne)","Casquette spécifique",9,0,9,0,0,"5h min./semaine","Communiquer les actions prioritaires à mes équipes directes.","Encourager et motiver toutes les personnes que je manage.","Informer Mme J, M. O, et l'équipe X, des actions à entreprendre cette semaine","Communiquer les objectifs à atteindre aux directeurs des différents services/ unités/ départements.","Déléguer le travail 1 et 2 à Mme O.","A compléter costume 2 Action 6","A compléter costume 2 Action 7","A compléter costume 2 Action 8","A compléter costume 2 Action 9","A compléter costume 2 Action 10"]
[null,3,"Partenaire commercial (à l'externe)","Bracelet, amulette",10,0,8,0,0,"2h min./semaine","Répondre aux principaux partenaires externes de l'entreprise","Gérer la relation avec les fournisseurs","Gérer la relation avec les clients","Gérer la relation avec la presse","A compléter costume 3 Action 5","A compléter costume 3 Action 6","A compléter costume 3 Action 7","A compléter costume 3 Action 8","A compléter costume 3 Action 9","A compléter costume 3 Action 10"]
[null,4,"Mari / Amant","Anneau, bracelet, amulette, paire de lunettes, style de vêtement",8,0,8,0,0,"24h min./semaine (2h/jour en semaine + 7h/jour les we)","Communiquer régulièrement avec elle/lui","Accorder x heures par jour/semaine à elle/lui","Répondre à ses demandes/messages/sollicitations","A compléter costume 4 Action 4","A compléter costume 4 Action 5","A compléter costume 4 Action 6","A compléter costume 4 Action 7","A compléter costume 4 Action 8","A compléter costume 4 Action 9","A compléter costume 4 Action 10"]
[null,5,"Père","Casquette spécifique, tee shirt spécifique",8,0,7,0,0,"24h min./semaine (2h/jour en semaine + 7h/jour les we)","Assurer les déplacements de mon/mes enfant(s)","M'assurer que mon/mes enfant(s) à des vêtements propres à mettre chaque jour.","Accompagner mon/mes enfant(s) à ses activités extra-scolaires.","Assurer l'éducation de mon enfant.","Assurer un environnement sain, propre et sécurisé pour mon/mes enfant(s)","Apporter de l'amour à mon enfant selon son langage de l'amour (= cadeaux, moments de qualité, services rendus, toucher physique, paroles valorisantes)","Aider mon/mes enfant(s) dans ses apprentissages.","A compléter costume 5 Action 8","A compléter costume 5 Action 9","A compléter costume 5 Action 10"]
[null,7,"Ami / copain (vie sociale)","Type de pull",6,0,5,0,0,"2h min./semaine","Passer du temps avec mes ami(e)s","Rencontrer de nouvelles personnes","Appeler/écrire à mes ami(e)s X, Z, et A au moins 1 fois/mois.","Répondre à mes ami(e)s dans les 3 jours.","A compléter costume 7 Action 5","A compléter costume 7 Action 6","A compléter costume 7 Action 7","A compléter costume 7 Action 8","A compléter costume 7 Action 9","A compléter costume 7 Action 10"]
[null,8,"Loisirs (activités, clubs, etc.)","Porte clé qui représente votre activité",6,0,4,0,0,"1h min./semaine","Lire 30 minutes/semaine un livre \"plaisir\".","Participer au carnaval de ma ville avec mon enfant.","Prendre 7 jours de vacances tous les 3 mois.","Pratiquer une activité qui me plaît chaque semaine, pendant x heures minimum.","Visiter des expositions/lieux/musées","Assister à des concerts : au moins 4 /an.","A compléter costume 8 Action 7","A compléter costume 8 Action 8","A compléter costume 8 Action 9","A compléter costume 8 Action 10"]
[null,9,"Dormeur","Pyjama",10,0,9,0,0,"7h min./jour","Suivre un rituel du coucher identique tous les soirs.","Ne pas regarder d'écrans au moins 1h avant de me coucher.","Me lever chaque matin à une heure fixe.","Méditer, visualiser, ou prendre un temps calme chaque jour de 10 minutes au réveil / à 13h00 / au coucher.","Manger léger tous les soirs du lundi au vendredi, sans sucre ni café.","A compléter costume 9 Action 6","A compléter costume 9 Action 7","A compléter costume 9 Action 8","A compléter costume 9 Action 9","A compléter costume 9 Action 10"]
[null,10,"Sportif","Statut, effigie, photo, portrait d'un sportif inspirant",7,0,9,0,0,"2h min./semaine","Acheter mes tenues et mon matériel de sport.","Courir 2 fois / semaine pendant 30 minutes minimum.","M'étirer 10 minutes tous les soirs à 21h00.","A compléter costume 10 Action 4","A compléter costume 10 Action 5","A compléter costume 10 Action 6","A compléter costume 10 Action 7","A compléter costume 10 Action 8","A compléter costume 10 Action 9","A compléter costume 10 Action 10"]
[null,"","","","","","","","","","","","","","","","","","",""]
[]
[]
[null,"Pour formules :"]
[null,"A porter seul"]
[null,"A donner"]
[null,"A partager"]
[null,"Sous-action 1"]
[null,"Sous-action 2"]
[null,"Sous-action 3"]
[null,"Sous-action 4"]
[null,"Sous-action 5"]
[null,"Sous-action 6"]
[null,"Sous-action 7"]
[null,"Sous-action 8"]
[null,"Sous-action 9"]
[null,"Sous-action 10"]
[null," = Quoi faire ?"]
[]
[]
[]
[]
[null,{"$f":"+B$3","v":"Costume n°"},{"$f":"+C$3","v":"Nom du costume/rôle endossé"},{"$f":"+K$3","v":"Action 1"},{"$f":"+L$3","v":"Action 2"},"Action 3","Action 4","Action 5","Action 6","Action 7","Action 8","Action 9","Action 10"]
[null,{"$f":"+B4","v":1},{"$f":"+C4","v":"Leader"},{"$f":"+K4","v":"Répondre aux mails & aux appels importants"},"Présenter les résultats de l'entreprise","Définir et valider la vision/stratégie à moyen et à long terme pour l'entreprise","Gérer des rdv avec les clients/partenaires/fournisseurs/ etc.","Appeler des clients/ partenaires/ fournisseurs/ etc.","M'informer des tendances actuelles et futures qui pourraient impacter l'entreprise",{"$f":"+Q4","v":"Me former : min. 1 formation /an"},"Réflexions et discusssions stratégiques","A compléter costume 1 Action 9","A compléter costume 1 Action 10"]
[null,{"$f":"+$B$36","v":1},"Utilité de cette action sur 10 / objectif ?",9,8,9,10,6,8,7,10,5,6]
[null,1,"Pourquoi cette action est-elle utile ou inutile ? Bénéfices réels/ objectif ?","Parce que XXX","Car xxx","Car ggg","Parce que FFF","Car JJJ","Parce que III","A compléter","A compléter","A compléter","A compléter"]
[null,1,{"$f":"$B$20","v":"Sous-action 1"},"Répondre aux clients","S'assurer que les résultats sont corrects",{"$f":"\"A compléter costume \"&$B39&\" \"&F$35&\" \"&Tableau14[[#This Row],[Colonne2]]","v":"A compléter costume 1 Action 3 Sous-action 1"},{"$f":"\"A compléter costume \"&$B39&\" \"&G$35&\" \"&Tableau14[[#This Row],[Colonne2]]","v":"A compléter costume 1 Action 4 Sous-action 1"},{"$f":"\"A compléter costume \"&$B39&\" \"&H$35&\" \"&Tableau14[[#This Row],[Colonne2]]","v":"A compléter costume 1 Action 5 Sous-action 1"},{"$f":"\"A compléter costume \"&$B39&\" \"&I$35&\" \"&Tableau14[[#This Row],[Colonne2]]","v":"A compléter costume 1 Action 6 Sous-action 1"},{"$f":"\"A compléter costume \"&$B39&\" \"&J$35&\" \"&Tableau14[[#This Row],[Colonne2]]","v":"A compléter costume 1 Action 7 Sous-action 1"},{"$f":"\"A compléter costume \"&$B39&\" \"&K$35&\" \"&Tableau14[[#This Row],[Colonne2]]","v":"A compléter costume 1 Action 8 Sous-action 1"},{"$f":"\"A compléter costume \"&$B39&\" \"&L$35&\" \"&Tableau14[[#This Row],[Colonne2]]","v":"A compléter costume 1 Action 9 Sous-action 1"},{"$f":"\"A compléter costume \"&$B39&\" \"&M$35&\" \"&Tableau14[[#This Row],[Colonne2]]","v":"A compléter costume 1 Action 10 Sous-action 1"}]
[null,1,{"$f":"C39&$B$30","v":"Sous-action 1 = Quoi faire ?"},"A partager","A porter seul","A partager","A partager","A porter seul","A porter seul","A donner","A partager","A donner","A partager"]
[null,1,{"$f":"$B$21","v":"Sous-action 2"},"Répondre aux fournisseurs","Anticiper le travail à produire par les équipes",{"$f":"\"A compléter costume \"&$B41&\" \"&F$35&\" \"&Tableau14[[#This Row],[Colonne2]]","v":"A compléter costume 1 Action 3 Sous-action 2"},{"$f":"\"A compléter costume \"&$B41&\" \"&G$35&\" \"&Tableau14[[#This Row],[Colonne2]]","v":"A compléter costume 1 Action 4 Sous-action 2"},{"$f":"\"A compléter costume \"&$B41&\" \"&H$35&\" \"&Tableau14[[#This Row],[Colonne2]]","v":"A compléter costume 1 Action 5 Sous-action 2"},{"$f":"\"A compléter costume \"&$B41&\" \"&I$35&\" \"&Tableau14[[#This Row],[Colonne2]]","v":"A compléter costume 1 Action 6 Sous-action 2"},{"$f":"\"A compléter costume \"&$B41&\" \"&J$35&\" \"&Tableau14[[#This Row],[Colonne2]]","v":"A compléter costume 1 Action 7 Sous-action 2"},{"$f":"\"A compléter costume \"&$B41&\" \"&K$35&\" \"&Tableau14[[#This Row],[Colonne2]]","v":"A compléter costume 1 Action 8 Sous-action 2"},{"$f":"\"A compléter costume \"&$B41&\" \"&L$35&\" \"&Tableau14[[#This Row],[Colonne2]]","v":"A compléter costume 1 Action 9 Sous-action 2"},{"$f":"\"A compléter costume \"&$B41&\" \"&M$35&\" \"&Tableau14[[#This Row],[Colonne2]]","v":"A compléter costume 1 Action 10 Sous-action 2"}]
[null,1,{"$f":"C41&$B$30","v":"Sous-action 2 = Quoi faire ?"},"A donner","A partager","A partager","A porter seul","A partager","A donner","A partager","A partager","A partager","A porter seul"]
[null,1,{"$f":"$B$22","v":"Sous-action 3"},"Répondre aux demandes nouvelles venant de l'externe",{"$f":"\"A compléter costume \"&$B43&\" \"&E$35&\" \"&Tableau14[[#This Row],[Colonne2]]","v":"A compléter costume 1 Action 2 Sous-action 3"},{"$f":"\"A compléter costume \"&$B43&\" \"&F$35&\" \"&Tableau14[[#This Row],[Colonne2]]","v":"A compléter costume 1 Action 3 Sous-action 3"},{"$f":"\"A compléter costume \"&$B43&\" \"&G$35&\" \"&Tableau14[[#This Row],[Colonne2]]","v":"A compléter costume 1 Action 4 Sous-action 3"},{"$f":"\"A compléter costume \"&$B43&\" \"&H$35&\" \"&Tableau14[[#This Row],[Colonne2]]","v":"A compléter costume 1 Action 5 Sous-action 3"},{"$f":"\"A compléter costume \"&$B43&\" \"&I$35&\" \"&Tableau14[[#This Row],[Colonne2]]","v":"A compléter costume 1 Action 6 Sous-action 3"},{"$f":"\"A compléter costume \"&$B43&\" \"&J$35&\" \"&Tableau14[[#This Row],[Colonne2]]","v":"A compléter costume 1 Action 7 Sous-action 3"},{"$f":"\"A compléter costume \"&$B43&\" \"&K$35&\" \"&Tableau14[[#This Row],[Colonne2]]","v":"A compléter costume 1 Action 8 Sous-action 3"},{"$f":"\"A compléter costume \"&$B43&\" \"&L$35&\" \"&Tableau14[[#This Row],[Colonne2]]","v":"A compléter costume 1 Action 9 Sous-action 3"},{"$f":"\"A compléter costume \"&$B43&\" \"&M$35&\" \"&Tableau14[[#This Row],[Colonne2]]","v":"A compléter costume 1 Action 10 Sous-action 3"}]
[null,1,{"$f":"C43&$B$30","v":"Sous-action 3 = Quoi faire ?"},"A donner","A partager","A donner","A donner","A porter seul","A donner","A partager","A donner","A partager","A donner"]
[null,1,{"$f":"$B$23","v":"Sous-action 4"},"Répondre aux clients internes",{"$f":"\"A compléter costume \"&$B45&\" \"&E$35&\" \"&Tableau14[[#This Row],[Colonne2]]","v":"A compléter costume 1 Action 2 Sous-action 4"},{"$f":"\"A compléter costume \"&$B45&\" \"&F$35&\" \"&Tableau14[[#This Row],[Colonne2]]","v":"A compléter costume 1 Action 3 Sous-action 4"},{"$f":"\"A compléter costume \"&$B45&\" \"&G$35&\" \"&Tableau14[[#This Row],[Colonne2]]","v":"A compléter costume 1 Action 4 Sous-action 4"},{"$f":"\"A compléter costume \"&$B45&\" \"&H$35&\" \"&Tableau14[[#This Row],[Colonne2]]","v":"A compléter costume 1 Action 5 Sous-action 4"},{"$f":"\"A compléter costume \"&$B45&\" \"&I$35&\" \"&Tableau14[[#This Row],[Colonne2]]","v":"A compléter costume 1 Action 6 Sous-action 4"},{"$f":"\"A compléter costume \"&$B45&\" \"&J$35&\" \"&Tableau14[[#This Row],[Colonne2]]","v":"A compléter costume 1 Action 7 Sous-action 4"},{"$f":"\"A compléter costume \"&$B45&\" \"&K$35&\" \"&Tableau14[[#This Row],[Colonne2]]","v":"A compléter costume 1 Action 8 Sous-action 4"},{"$f":"\"A compléter costume \"&$B45&\" \"&L$35&\" \"&Tableau14[[#This Row],[Colonne2]]","v":"A compléter costume 1 Action 9 Sous-action 4"},{"$f":"\"A compléter costume \"&$B45&\" \"&M$35&\" \"&Tableau14[[#This Row],[Colonne2]]","v":"A compléter costume 1 Action 10 Sous-action 4"}]
[null,1,{"$f":"C45&$B$30","v":"Sous-action 4 = Quoi faire ?"},"A partager","A porter seul","A porter seul","A partager","A partager","A partager","A porter seul","A partager","A partager","A porter seul"]
[null,1,{"$f":"$B$24","v":"Sous-action 5"},"Répondre à la Presse",{"$f":"\"A compléter costume \"&$B47&\" \"&E$35&\" \"&Tableau14[[#This Row],[Colonne2]]","v":"A compléter costume 1 Action 2 Sous-action 5"},{"$f":"\"A compléter costume \"&$B47&\" \"&F$35&\" \"&Tableau14[[#This Row],[Colonne2]]","v":"A compléter costume 1 Action 3 Sous-action 5"},{"$f":"\"A compléter costume \"&$B47&\" \"&G$35&\" \"&Tableau14[[#This Row],[Colonne2]]","v":"A compléter costume 1 Action 4 Sous-action 5"},{"$f":"\"A compléter costume \"&$B47&\" \"&H$35&\" \"&Tableau14[[#This Row],[Colonne2]]","v":"A compléter costume 1 Action 5 Sous-action 5"},{"$f":"\"A compléter costume \"&$B47&\" \"&I$35&\" \"&Tableau14[[#This Row],[Colonne2]]","v":"A compléter costume 1 Action 6 Sous-action 5"},{"$f":"\"A compléter costume \"&$B47&\" \"&J$35&\" \"&Tableau14[[#This Row],[Colonne2]]","v":"A compléter costume 1 Action 7 Sous-action 5"},{"$f":"\"A compléter costume \"&$B47&\" \"&K$35&\" \"&Tableau14[[#This Row],[Colonne2]]","v":"A compléter costume 1 Action 8 Sous-action 5"},{"$f":"\"A compléter costume \"&$B47&\" \"&L$35&\" \"&Tableau14[[#This Row],[Colonne2]]","v":"A compléter costume 1 Action 9 Sous-action 5"},{"$f":"\"A compléter costume \"&$B47&\" \"&M$35&\" \"&Tableau14[[#This Row],[Colonne2]]","v":"A compléter costume 1 Action 10 Sous-action 5"}]
[null,1,{"$f":"C47&$B$30","v":"Sous-action 5 = Quoi faire ?"},"A partager","A partager","A partager","A donner","A porter seul","A porter seul","A donner","A partager","A partager","A partager"]
[null,1,{"$f":"$B$25","v":"Sous-action 6"},"Action ppp",{"$f":"\"A compléter costume \"&$B49&\" \"&E$35&\" \"&Tableau14[[#This Row],[Colonne2]]","v":"A compléter costume 1 Action 2 Sous-action 6"},{"$f":"\"A compléter costume \"&$B49&\" \"&F$35&\" \"&Tableau14[[#This Row],[Colonne2]]","v":"A compléter costume 1 Action 3 Sous-action 6"},{"$f":"\"A compléter costume \"&$B49&\" \"&G$35&\" \"&Tableau14[[#This Row],[Colonne2]]","v":"A compléter costume 1 Action 4 Sous-action 6"},{"$f":"\"A compléter costume \"&$B49&\" \"&H$35&\" \"&Tableau14[[#This Row],[Colonne2]]","v":"A compléter costume 1 Action 5 Sous-action 6"},{"$f":"\"A compléter costume \"&$B49&\" \"&I$35&\" \"&Tableau14[[#This Row],[Colonne2]]","v":"A compléter costume 1 Action 6 Sous-action 6"},{"$f":"\"A compléter costume \"&$B49&\" \"&J$35&\" \"&Tableau14[[#This Row],[Colonne2]]","v":"A compléter costume 1 Action 7 Sous-action 6"},{"$f":"\"A compléter costume \"&$B49&\" \"&K$35&\" \"&Tableau14[[#This Row],[Colonne2]]","v":"A compléter costume 1 Action 8 Sous-action 6"},{"$f":"\"A compléter costume \"&$B49&\" \"&L$35&\" \"&Tableau14[[#This Row],[Colonne2]]","v":"A compléter costume 1 Action 9 Sous-action 6"},{"$f":"\"A compléter costume \"&$B49&\" \"&M$35&\" \"&Tableau14[[#This Row],[Colonne2]]","v":"A compléter costume 1 Action 10 Sous-action 6"}]
[null,1,{"$f":"C49&$B$30","v":"Sous-action 6 = Quoi faire ?"},"A donner","A donner","A donner","A porter seul","A partager","A partager","A partager","A partager","A donner","A partager"]
[null,1,{"$f":"$B$26","v":"Sous-action 7"},"Action jj",{"$f":"\"A compléter costume \"&$B51&\" \"&E$35&\" \"&Tableau14[[#This Row],[Colonne2]]","v":"A compléter costume 1 Action 2 Sous-action 7"},{"$f":"\"A compléter costume \"&$B51&\" \"&F$35&\" \"&Tableau14[[#This Row],[Colonne2]]","v":"A compléter costume 1 Action 3 Sous-action 7"},{"$f":"\"A compléter costume \"&$B51&\" \"&G$35&\" \"&Tableau14[[#This Row],[Colonne2]]","v":"A compléter costume 1 Action 4 Sous-action 7"},{"$f":"\"A compléter costume \"&$B51&\" \"&H$35&\" \"&Tableau14[[#This Row],[Colonne2]]","v":"A compléter costume 1 Action 5 Sous-action 7"},{"$f":"\"A compléter costume \"&$B51&\" \"&I$35&\" \"&Tableau14[[#This Row],[Colonne2]]","v":"A compléter costume 1 Action 6 Sous-action 7"},{"$f":"\"A compléter costume \"&$B51&\" \"&J$35&\" \"&Tableau14[[#This Row],[Colonne2]]","v":"A compléter costume 1 Action 7 Sous-action 7"},{"$f":"\"A compléter costume \"&$B51&\" \"&K$35&\" \"&Tableau14[[#This Row],[Colonne2]]","v":"A compléter costume 1 Action 8 Sous-action 7"},{"$f":"\"A compléter costume \"&$B51&\" \"&L$35&\" \"&Tableau14[[#This Row],[Colonne2]]","v":"A compléter costume 1 Action 9 Sous-action 7"},{"$f":"\"A compléter costume \"&$B51&\" \"&M$35&\" \"&Tableau14[[#This Row],[Colonne2]]","v":"A compléter costume 1 Action 10 Sous-action 7"}]
[null,1,{"$f":"C51&$B$30","v":"Sous-action 7 = Quoi faire ?"},"A partager","A porter seul","A donner","A partager","A donner","A donner","A donner","A partager","A porter seul","A partager"]
[null,1,{"$f":"$B$27","v":"Sous-action 8"},"Action gg",{"$f":"\"A compléter costume \"&$B53&\" \"&E$35&\" \"&Tableau14[[#This Row],[Colonne2]]","v":"A compléter costume 1 Action 2 Sous-action 8"},{"$f":"\"A compléter costume \"&$B53&\" \"&F$35&\" \"&Tableau14[[#This Row],[Colonne2]]","v":"A compléter costume 1 Action 3 Sous-action 8"},{"$f":"\"A compléter costume \"&$B53&\" \"&G$35&\" \"&Tableau14[[#This Row],[Colonne2]]","v":"A compléter costume 1 Action 4 Sous-action 8"},{"$f":"\"A compléter costume \"&$B53&\" \"&H$35&\" \"&Tableau14[[#This Row],[Colonne2]]","v":"A compléter costume 1 Action 5 Sous-action 8"},{"$f":"\"A compléter costume \"&$B53&\" \"&I$35&\" \"&Tableau14[[#This Row],[Colonne2]]","v":"A compléter costume 1 Action 6 Sous-action 8"},{"$f":"\"A compléter costume \"&$B53&\" \"&J$35&\" \"&Tableau14[[#This Row],[Colonne2]]","v":"A compléter costume 1 Action 7 Sous-action 8"},{"$f":"\"A compléter costume \"&$B53&\" \"&K$35&\" \"&Tableau14[[#This Row],[Colonne2]]","v":"A compléter costume 1 Action 8 Sous-action 8"},{"$f":"\"A compléter costume \"&$B53&\" \"&L$35&\" \"&Tableau14[[#This Row],[Colonne2]]","v":"A compléter costume 1 Action 9 Sous-action 8"},{"$f":"\"A compléter costume \"&$B53&\" \"&M$35&\" \"&Tableau14[[#This Row],[Colonne2]]","v":"A compléter costume 1 Action 10 Sous-action 8"}]
[null,1,{"$f":"C53&$B$30","v":"Sous-action 8 = Quoi faire ?"},"A porter seul","A partager","A porter seul","A partager","A partager","A partager","A partager","A partager","A partager","A partager"]
[null,1,{"$f":"$B$28","v":"Sous-action 9"},{"$f":"\"A compléter costume \"&$B55&\" \"&D$35&\" \"&Tableau14[[#This Row],[Colonne2]]","v":"A compléter costume 1 Action 1 Sous-action 9"},{"$f":"\"A compléter costume \"&$B55&\" \"&E$35&\" \"&Tableau14[[#This Row],[Colonne2]]","v":"A compléter costume 1 Action 2 Sous-action 9"},{"$f":"\"A compléter costume \"&$B55&\" \"&F$35&\" \"&Tableau14[[#This Row],[Colonne2]]","v":"A compléter costume 1 Action 3 Sous-action 9"},{"$f":"\"A compléter costume \"&$B55&\" \"&G$35&\" \"&Tableau14[[#This Row],[Colonne2]]","v":"A compléter costume 1 Action 4 Sous-action 9"},{"$f":"\"A compléter costume \"&$B55&\" \"&H$35&\" \"&Tableau14[[#This Row],[Colonne2]]","v":"A compléter costume 1 Action 5 Sous-action 9"},{"$f":"\"A compléter costume \"&$B55&\" \"&I$35&\" \"&Tableau14[[#This Row],[Colonne2]]","v":"A compléter costume 1 Action 6 Sous-action 9"},{"$f":"\"A compléter costume \"&$B55&\" \"&J$35&\" \"&Tableau14[[#This Row],[Colonne2]]","v":"A compléter costume 1 Action 7 Sous-action 9"},{"$f":"\"A compléter costume \"&$B55&\" \"&K$35&\" \"&Tableau14[[#This Row],[Colonne2]]","v":"A compléter costume 1 Action 8 Sous-action 9"},{"$f":"\"A compléter costume \"&$B55&\" \"&L$35&\" \"&Tableau14[[#This Row],[Colonne2]]","v":"A compléter costume 1 Action 9 Sous-action 9"},{"$f":"\"A compléter costume \"&$B55&\" \"&M$35&\" \"&Tableau14[[#This Row],[Colonne2]]","v":"A compléter costume 1 Action 10 Sous-action 9"}]
[null,1,{"$f":"C55&$B$30","v":"Sous-action 9 = Quoi faire ?"},"A partager","A partager","A partager","A porter seul","A partager","A partager","A porter seul","A donner","A partager","A partager"]
[null,1,{"$f":"$B$29","v":"Sous-action 10"},{"$f":"\"A compléter costume \"&$B57&\" \"&D$35&\" \"&Tableau14[[#This Row],[Colonne2]]","v":"A compléter costume 1 Action 1 Sous-action 10"},{"$f":"\"A compléter costume \"&$B57&\" \"&E$35&\" \"&Tableau14[[#This Row],[Colonne2]]","v":"A compléter costume 1 Action 2 Sous-action 10"},{"$f":"\"A compléter costume \"&$B57&\" \"&F$35&\" \"&Tableau14[[#This Row],[Colonne2]]","v":"A compléter costume 1 Action 3 Sous-action 10"},{"$f":"\"A compléter costume \"&$B57&\" \"&G$35&\" \"&Tableau14[[#This Row],[Colonne2]]","v":"A compléter costume 1 Action 4 Sous-action 10"},{"$f":"\"A compléter costume \"&$B57&\" \"&H$35&\" \"&Tableau14[[#This Row],[Colonne2]]","v":"A compléter costume 1 Action 5 Sous-action 10"},{"$f":"\"A compléter costume \"&$B57&\" \"&I$35&\" \"&Tableau14[[#This Row],[Colonne2]]","v":"A compléter costume 1 Action 6 Sous-action 10"},{"$f":"\"A compléter costume \"&$B57&\" \"&J$35&\" \"&Tableau14[[#This Row],[Colonne2]]","v":"A compléter costume 1 Action 7 Sous-action 10"},{"$f":"\"A compléter costume \"&$B57&\" \"&K$35&\" \"&Tableau14[[#This Row],[Colonne2]]","v":"A compléter costume 1 Action 8 Sous-action 10"},{"$f":"\"A compléter costume \"&$B57&\" \"&L$35&\" \"&Tableau14[[#This Row],[Colonne2]]","v":"A compléter costume 1 Action 9 Sous-action 10"},{"$f":"\"A compléter costume \"&$B57&\" \"&M$35&\" \"&Tableau14[[#This Row],[Colonne2]]","v":"A compléter costume 1 Action 10 Sous-action 10"}]
[null,1,{"$f":"C57&$B$30","v":"Sous-action 10 = Quoi faire ?"},"A partager","A partager","A partager","A donner","A porter seul","A partager","A partager","A partager","A partager","A partager"]
[null,{"$f":"+B5","v":2},{"$f":"+C5","v":"Manager (en interne)"},{"$f":"+K5","v":"Communiquer les actions prioritaires à mes équipes directes."},{"$f":"+L5","v":"Encourager et motiver toutes les personnes que je manage."},"Informer Mme J, M. O, et l'équipe X, des actions à entreprendre cette semaine",{"$f":"+N5","v":"Communiquer les objectifs à atteindre aux directeurs des différents services/ unités/ départements."},"Déléguer le travail 1 et 2 à Mme O.","A compléter costume 2 Action 6","A compléter costume 2 Action 7","A compléter costume 2 Action 8","A compléter costume 2 Action 9","A compléter costume 2 Action 10"]
[null,{"$f":"+$B$59","v":2},"Utilité de cette action sur 10 / objectif ?",6,7,8]
[null,2,"Pourquoi cette action est-elle utile ou inutile ? Bénéfices réels/ objectif ?","Car jjj","Parce que ooo"]
[null,2,{"$f":"$B$20","v":"Sous-action 1"},{"$f":"\"A compléter costume \"&$B62&\" \"&D$35&\" \"&$C62","v":"A compléter costume 2 Action 1 Sous-action 1"},"A compléter costume 2 Action 2 Sous-action 1","A compléter costume 2 Action 3 Sous-action 1","A compléter costume 2 Action 4 Sous-action 1","A compléter costume 2 Action 5 Sous-action 1","A compléter costume 2 Action 6 Sous-action 1","A compléter costume 2 Action 7 Sous-action 1","A compléter costume 2 Action 8 Sous-action 1","A compléter costume 2 Action 9 Sous-action 1","A compléter costume 2 Action 10 Sous-action 1"]
[null,2,{"$f":"C62&$B$30","v":"Sous-action 1 = Quoi faire ?"},"A partager","A porter seul","A porter seul","A donner","A porter seul","A porter seul","A porter seul","A porter seul","A partager","A partager"]
[null,2,{"$f":"$B$21","v":"Sous-action 2"},{"$f":"\"A compléter costume \"&$B64&\" \"&D$35&\" \"&$C64","v":"A compléter costume 2 Action 1 Sous-action 2"},"A compléter costume 2 Action 2 Sous-action 2","A compléter costume 2 Action 3 Sous-action 2","A compléter costume 2 Action 4 Sous-action 2","A compléter costume 2 Action 5 Sous-action 2","A compléter costume 2 Action 6 Sous-action 2","A compléter costume 2 Action 7 Sous-action 2","A compléter costume 2 Action 8 Sous-action 2","A compléter costume 2 Action 9 Sous-action 2","A compléter costume 2 Action 10 Sous-action 2"]
[null,2,{"$f":"C64&$B$30","v":"Sous-action 2 = Quoi faire ?"},"A porter seul","A donner","A partager","A porter seul","A porter seul","A porter seul","A porter seul","A porter seul","A partager","A partager"]
[null,2,{"$f":"$B$22","v":"Sous-action 3"},{"$f":"\"A compléter costume \"&$B66&\" \"&D$35&\" \"&$C66","v":"A compléter costume 2 Action 1 Sous-action 3"},"A compléter costume 2 Action 2 Sous-action 3","A compléter costume 2 Action 3 Sous-action 3","A compléter costume 2 Action 4 Sous-action 3","A compléter costume 2 Action 5 Sous-action 3","A compléter costume 2 Action 6 Sous-action 3","A compléter costume 2 Action 7 Sous-action 3","A compléter costume 2 Action 8 Sous-action 3","A compléter costume 2 Action 9 Sous-action 3","A compléter costume 2 Action 10 Sous-action 3"]
[null,2,{"$f":"C66&$B$30","v":"Sous-action 3 = Quoi faire ?"},"A partager","A porter seul","A porter seul","A porter seul","A porter seul","A partager","A partager","A porter seul","A porter seul","A partager"]
[null,2,{"$f":"$B$23","v":"Sous-action 4"},{"$f":"\"A compléter costume \"&$B68&\" \"&D$35&\" \"&$C68","v":"A compléter costume 2 Action 1 Sous-action 4"},"A compléter costume 2 Action 2 Sous-action 4","A compléter costume 2 Action 3 Sous-action 4","A compléter costume 2 Action 4 Sous-action 4","A compléter costume 2 Action 5 Sous-action 4","A compléter costume 2 Action 6 Sous-action 4","A compléter costume 2 Action 7 Sous-action 4","A compléter costume 2 Action 8 Sous-action 4","A compléter costume 2 Action 9 Sous-action 4","A compléter costume 2 Action 10 Sous-action 4"]
[null,2,{"$f":"C68&$B$30","v":"Sous-action 4 = Quoi faire ?"},"A partager","A partager","A donner","A porter seul","A partager","A donner","A partager","A partager","A porter seul","A porter seul"]
[null,2,{"$f":"$B$24","v":"Sous-action 5"},{"$f":"\"A compléter costume \"&$B70&\" \"&D$35&\" \"&$C70","v":"A compléter costume 2 Action 1 Sous-action 5"},"A compléter costume 2 Action 2 Sous-action 5","A compléter costume 2 Action 3 Sous-action 5","A compléter costume 2 Action 4 Sous-action 5","A compléter costume 2 Action 5 Sous-action 5","A compléter costume 2 Action 6 Sous-action 5","A compléter costume 2 Action 7 Sous-action 5","A compléter costume 2 Action 8 Sous-action 5","A compléter costume 2 Action 9 Sous-action 5","A compléter costume 2 Action 10 Sous-action 5"]
[null,2,{"$f":"C70&$B$30","v":"Sous-action 5 = Quoi faire ?"},"A donner","A porter seul","A porter seul","A partager","A porter seul","A porter seul","A partager","A partager","A porter seul","A porter seul"]
[null,2,{"$f":"$B$25","v":"Sous-action 6"},{"$f":"\"A compléter costume \"&$B72&\" \"&D$35&\" \"&$C72","v":"A compléter costume 2 Action 1 Sous-action 6"},"A compléter costume 2 Action 2 Sous-action 6","A compléter costume 2 Action 3 Sous-action 6","A compléter costume 2 Action 4 Sous-action 6","A compléter costume 2 Action 5 Sous-action 6","A compléter costume 2 Action 6 Sous-action 6","A compléter costume 2 Action 7 Sous-action 6","A compléter costume 2 Action 8 Sous-action 6","A compléter costume 2 Action 9 Sous-action 6","A compléter costume 2 Action 10 Sous-action 6"]
[null,2,{"$f":"C72&$B$30","v":"Sous-action 6 = Quoi faire ?"},"A partager","A donner","A porter seul","A partager","A partager","A partager","A partager","A donner","A partager","A partager"]
[null,2,{"$f":"$B$26","v":"Sous-action 7"},{"$f":"\"A compléter costume \"&$B74&\" \"&D$35&\" \"&$C74","v":"A compléter costume 2 Action 1 Sous-action 7"},"A compléter costume 2 Action 2 Sous-action 7","A compléter costume 2 Action 3 Sous-action 7","A compléter costume 2 Action 4 Sous-action 7","A compléter costume 2 Action 5 Sous-action 7","A compléter costume 2 Action 6 Sous-action 7","A compléter costume 2 Action 7 Sous-action 7","A compléter costume 2 Action 8 Sous-action 7","A compléter costume 2 Action 9 Sous-action 7","A compléter costume 2 Action 10 Sous-action 7"]
[null,2,{"$f":"C74&$B$30","v":"Sous-action 7 = Quoi faire ?"},"A donner","A porter seul","A partager","A donner","A porter seul","A porter seul","A donner","A partager","A partager","A partager"]
[null,2,{"$f":"$B$27","v":"Sous-action 8"},{"$f":"\"A compléter costume \"&$B76&\" \"&D$35&\" \"&$C76","v":"A compléter costume 2 Action 1 Sous-action 8"},"A compléter costume 2 Action 2 Sous-action 8","A compléter costume 2 Action 3 Sous-action 8","A compléter costume 2 Action 4 Sous-action 8","A compléter costume 2 Action 5 Sous-action 8","A compléter costume 2 Action 6 Sous-action 8","A compléter costume 2 Action 7 Sous-action 8","A compléter costume 2 Action 8 Sous-action 8","A compléter costume 2 Action 9 Sous-action 8","A compléter costume 2 Action 10 Sous-action 8"]
[null,2,{"$f":"C76&$B$30","v":"Sous-action 8 = Quoi faire ?"},"A porter seul","A porter seul","A porter seul","A porter seul","A porter seul","A porter seul","A donner","A partager","A donner","A donner"]
[null,2,{"$f":"$B$28","v":"Sous-action 9"},{"$f":"\"A compléter costume \"&$B78&\" \"&D$35&\" \"&$C78","v":"A compléter costume 2 Action 1 Sous-action 9"},"A compléter costume 2 Action 2 Sous-action 9","A compléter costume 2 Action 3 Sous-action 9","A compléter costume 2 Action 4 Sous-action 9","A compléter costume 2 Action 5 Sous-action 9","A compléter costume 2 Action 6 Sous-action 9","A compléter costume 2 Action 7 Sous-action 9","A compléter costume 2 Action 8 Sous-action 9","A compléter costume 2 Action 9 Sous-action 9","A compléter costume 2 Action 10 Sous-action 9"]
[null,2,{"$f":"C78&$B$30","v":"Sous-action 9 = Quoi faire ?"},"A porter seul","A porter seul","A porter seul","A partager","A partager","A donner","A porter seul","A partager","A partager","A partager"]
[null,2,{"$f":"$B$29","v":"Sous-action 10"},{"$f":"\"A compléter costume \"&$B80&\" \"&D$35&\" \"&$C80","v":"A compléter costume 2 Action 1 Sous-action 10"},"A compléter costume 2 Action 2 Sous-action 10","A compléter costume 2 Action 3 Sous-action 10","A compléter costume 2 Action 4 Sous-action 10","A compléter costume 2 Action 5 Sous-action 10","A compléter costume 2 Action 6 Sous-action 10","A compléter costume 2 Action 7 Sous-action 10","A compléter costume 2 Action 8 Sous-action 10","A compléter costume 2 Action 9 Sous-action 10","A compléter costume 2 Action 10 Sous-action 10"]
[null,2,{"$f":"C80&$B$30","v":"Sous-action 10 = Quoi faire ?"},"A donner","A porter seul","A donner","A porter seul","A donner","A partager","A porter seul","A partager","A porter seul","A donner"]
[null,{"$f":"+B6","v":3},{"$f":"+C6","v":"Partenaire commercial (à l'externe)"},{"$f":"+K6","v":"Répondre aux principaux partenaires externes de l'entreprise"},{"$f":"+L6","v":"Gérer la relation avec les fournisseurs"},"Gérer la relation avec les clients","Gérer la relation avec la presse","A compléter costume 3 Action 5","A compléter costume 3 Action 6","A compléter costume 3 Action 7","A compléter costume 3 Action 8","A compléter costume 3 Action 9","A compléter costume 3 Action 10"]
[null,{"$f":"+$B$82","v":3},"Utilité de cette action sur 10 / objectif ?"]
[null,3,"Pourquoi cette action est-elle utile ou inutile ? Bénéfices réels/ objectif ?"]
[null,3,{"$f":"$B$20","v":"Sous-action 1"},{"$f":"\"A compléter costume \"&$B85&\" \"&D$35&\" \"&$C85","v":"A compléter costume 3 Action 1 Sous-action 1"},"A compléter costume 3 Action 2 Sous-action 1","A compléter costume 3 Action 3 Sous-action 1","A compléter costume 3 Action 4 Sous-action 1","A compléter costume 3 Action 5 Sous-action 1","A compléter costume 3 Action 6 Sous-action 1","A compléter costume 3 Action 7 Sous-action 1","A compléter costume 3 Action 8 Sous-action 1","A compléter costume 3 Action 9 Sous-action 1","A compléter costume 3 Action 10 Sous-action 1"]
[null,3,{"$f":"C85&$B$30","v":"Sous-action 1 = Quoi faire ?"},"A donner","A porter seul","A partager","A partager","A donner","A partager","A partager","A porter seul","A partager","A partager"]
[null,3,{"$f":"$B$21","v":"Sous-action 2"},{"$f":"\"A compléter costume \"&$B87&\" \"&D$35&\" \"&$C87","v":"A compléter costume 3 Action 1 Sous-action 2"},"A compléter costume 3 Action 2 Sous-action 2","A compléter costume 3 Action 3 Sous-action 2","A compléter costume 3 Action 4 Sous-action 2","A compléter costume 3 Action 5 Sous-action 2","A compléter costume 3 Action 6 Sous-action 2","A compléter costume 3 Action 7 Sous-action 2","A compléter costume 3 Action 8 Sous-action 2","A compléter costume 3 Action 9 Sous-action 2","A compléter costume 3 Action 10 Sous-action 2"]
[null,3,{"$f":"C87&$B$30","v":"Sous-action 2 = Quoi faire ?"},"A porter seul","A porter seul","A porter seul","A porter seul","A partager","A partager","A partager","A porter seul","A porter seul","A porter seul"]
[null,3,{"$f":"$B$22","v":"Sous-action 3"},{"$f":"\"A compléter costume \"&$B89&\" \"&D$35&\" \"&$C89","v":"A compléter costume 3 Action 1 Sous-action 3"},"A compléter costume 3 Action 2 Sous-action 3","A compléter costume 3 Action 3 Sous-action 3","A compléter costume 3 Action 4 Sous-action 3","A compléter costume 3 Action 5 Sous-action 3","A compléter costume 3 Action 6 Sous-action 3","A compléter costume 3 Action 7 Sous-action 3","A compléter costume 3 Action 8 Sous-action 3","A compléter costume 3 Action 9 Sous-action 3","A compléter costume 3 Action 10 Sous-action 3"]
[null,3,{"$f":"C89&$B$30","v":"Sous-action 3 = Quoi faire ?"},"A porter seul","A porter seul","A donner","A partager","A porter seul","A porter seul","A porter seul","A partager","A donner","A partager"]
[null,3,{"$f":"$B$23","v":"Sous-action 4"},{"$f":"\"A compléter costume \"&$B91&\" \"&D$35&\" \"&$C91","v":"A compléter costume 3 Action 1 Sous-action 4"},"A compléter costume 3 Action 2 Sous-action 4","A compléter costume 3 Action 3 Sous-action 4","A compléter costume 3 Action 4 Sous-action 4","A compléter costume 3 Action 5 Sous-action 4","A compléter costume 3 Action 6 Sous-action 4","A compléter costume 3 Action 7 Sous-action 4","A compléter costume 3 Action 8 Sous-action 4","A compléter costume 3 Action 9 Sous-action 4","A compléter costume 3 Action 10 Sous-action 4"]
[null,3,{"$f":"C91&$B$30","v":"Sous-action 4 = Quoi faire ?"},"A porter seul","A porter seul","A partager","A partager","A partager","A porter seul","A porter seul","A porter seul","A partager","A porter seul"]
[null,3,{"$f":"$B$24","v":"Sous-action 5"},{"$f":"\"A compléter costume \"&$B93&\" \"&D$35&\" \"&$C93","v":"A compléter costume 3 Action 1 Sous-action 5"},"A compléter costume 3 Action 2 Sous-action 5","A compléter costume 3 Action 3 Sous-action 5","A compléter costume 3 Action 4 Sous-action 5","A compléter costume 3 Action 5 Sous-action 5","A compléter costume 3 Action 6 Sous-action 5","A compléter costume 3 Action 7 Sous-action 5","A compléter costume 3 Action 8 Sous-action 5","A compléter costume 3 Action 9 Sous-action 5","A compléter costume 3 Action 10 Sous-action 5"]
[null,3,{"$f":"C93&$B$30","v":"Sous-action 5 = Quoi faire ?"},"A donner","A partager","A porter seul","A partager","A porter seul","A partager","A partager","A partager","A porter seul","A porter seul"]
[null,3,{"$f":"$B$25","v":"Sous-action 6"},{"$f":"\"A compléter costume \"&$B95&\" \"&D$35&\" \"&$C95","v":"A compléter costume 3 Action 1 Sous-action 6"},"A compléter costume 3 Action 2 Sous-action 6","A compléter costume 3 Action 3 Sous-action 6","A compléter costume 3 Action 4 Sous-action 6","A compléter costume 3 Action 5 Sous-action 6","A compléter costume 3 Action 6 Sous-action 6","A compléter costume 3 Action 7 Sous-action 6","A compléter costume 3 Action 8 Sous-action 6","A compléter costume 3 Action 9 Sous-action 6","A compléter costume 3 Action 10 Sous-action 6"]
[null,3,{"$f":"C95&$B$30","v":"Sous-action 6 = Quoi faire ?"},"A partager","A donner","A porter seul","A partager","A donner","A porter seul","A porter seul","A donner","A partager","A donner"]
[null,3,{"$f":"$B$26","v":"Sous-action 7"},{"$f":"\"A compléter costume \"&$B97&\" \"&D$35&\" \"&$C97","v":"A compléter costume 3 Action 1 Sous-action 7"},"A compléter costume 3 Action 2 Sous-action 7","A compléter costume 3 Action 3 Sous-action 7","A compléter costume 3 Action 4 Sous-action 7","A compléter costume 3 Action 5 Sous-action 7","A compléter costume 3 Action 6 Sous-action 7","A compléter costume 3 Action 7 Sous-action 7","A compléter costume 3 Action 8 Sous-action 7","A compléter costume 3 Action 9 Sous-action 7","A compléter costume 3 Action 10 Sous-action 7"]
[null,3,{"$f":"C97&$B$30","v":"Sous-action 7 = Quoi faire ?"},"A partager","A donner","A porter seul","A partager","A porter seul","A donner","A porter seul","A porter seul","A partager","A donner"]
[null,3,{"$f":"$B$27","v":"Sous-action 8"},{"$f":"\"A compléter costume \"&$B99&\" \"&D$35&\" \"&$C99","v":"A compléter costume 3 Action 1 Sous-action 8"},"A compléter costume 3 Action 2 Sous-action 8","A compléter costume 3 Action 3 Sous-action 8","A compléter costume 3 Action 4 Sous-action 8","A compléter costume 3 Action 5 Sous-action 8","A compléter costume 3 Action 6 Sous-action 8","A compléter costume 3 Action 7 Sous-action 8","A compléter costume 3 Action 8 Sous-action 8","A compléter costume 3 Action 9 Sous-action 8","A compléter costume 3 Action 10 Sous-action 8"]
[null,3,{"$f":"C99&$B$30","v":"Sous-action 8 = Quoi faire ?"},"A donner","A porter seul","A partager","A partager","A porter seul","A partager","A partager","A porter seul","A porter seul","A donner"]
[null,3,{"$f":"$B$28","v":"Sous-action 9"},{"$f":"\"A compléter costume \"&$B101&\" \"&D$35&\" \"&$C101","v":"A compléter costume 3 Action 1 Sous-action 9"},"A compléter costume 3 Action 2 Sous-action 9","A compléter costume 3 Action 3 Sous-action 9","A compléter costume 3 Action 4 Sous-action 9","A compléter costume 3 Action 5 Sous-action 9","A compléter costume 3 Action 6 Sous-action 9","A compléter costume 3 Action 7 Sous-action 9","A compléter costume 3 Action 8 Sous-action 9","A compléter costume 3 Action 9 Sous-action 9","A compléter costume 3 Action 10 Sous-action 9"]
[null,3,{"$f":"C101&$B$30","v":"Sous-action 9 = Quoi faire ?"},"A porter seul","A porter seul","A donner","A porter seul","A porter seul","A porter seul","A donner","A porter seul","A porter seul","A porter seul"]
[null,3,{"$f":"$B$29","v":"Sous-action 10"},{"$f":"\"A compléter costume \"&$B103&\" \"&D$35&\" \"&$C103","v":"A compléter costume 3 Action 1 Sous-action 10"},"A compléter costume 3 Action 2 Sous-action 10","A compléter costume 3 Action 3 Sous-action 10","A compléter costume 3 Action 4 Sous-action 10","A compléter costume 3 Action 5 Sous-action 10","A compléter costume 3 Action 6 Sous-action 10","A compléter costume 3 Action 7 Sous-action 10","A compléter costume 3 Action 8 Sous-action 10","A compléter costume 3 Action 9 Sous-action 10","A compléter costume 3 Action 10 Sous-action 10"]
[null,3,{"$f":"C103&$B$30","v":"Sous-action 10 = Quoi faire ?"},"A porter seul","A partager","A partager","A partager","A partager","A partager","A donner","A porter seul","A donner","A donner"]
[null,{"$f":"+B7","v":4},{"$f":"+C7","v":"Mari / Amant"},{"$f":"+K7","v":"Communiquer régulièrement avec elle/lui"},{"$f":"+L7","v":"Accorder x heures par jour/semaine à elle/lui"},"Répondre à ses demandes/messages/sollicitations","A compléter costume 4 Action 4","A compléter costume 4 Action 5","A compléter costume 4 Action 6","A compléter costume 4 Action 7","A compléter costume 4 Action 8","A compléter costume 4 Action 9","A compléter costume 4 Action 10"]
[null,{"$f":"+$B$105","v":4},"Utilité de cette action sur 10 / objectif ?",7,5,8,6,7,4]
[null,4,"Pourquoi cette action est-elle utile ou inutile ? Bénéfices réels/ objectif ?","Parce que hhh","Car ooo","Parce que pppp"]
[null,4,{"$f":"$B$20","v":"Sous-action 1"},{"$f":"\"A compléter costume \"&$B108&\" \"&D$35&\" \"&$C108","v":"A compléter costume 4 Action 1 Sous-action 1"},{"$f":"\"A compléter costume \"&$B108&\" \"&E$35&\" \"&$C108","v":"A compléter costume 4 Action 2 Sous-action 1"},{"$f":"\"A compléter costume \"&$B108&\" \"&F$35&\" \"&$C108","v":"A compléter costume 4 Action 3 Sous-action 1"},{"$f":"\"A compléter costume \"&$B108&\" \"&G$35&\" \"&$C108","v":"A compléter costume 4 Action 4 Sous-action 1"},{"$f":"\"A compléter costume \"&$B108&\" \"&H$35&\" \"&$C108","v":"A compléter costume 4 Action 5 Sous-action 1"},{"$f":"\"A compléter costume \"&$B108&\" \"&I$35&\" \"&$C108","v":"A compléter costume 4 Action 6 Sous-action 1"},"A compléter costume 4 Action 7 Sous-action 1","A compléter costume 4 Action 8 Sous-action 1","A compléter costume 4 Action 9 Sous-action 1","A compléter costume 4 Action 10 Sous-action 1"]
[null,4,{"$f":"C108&$B$30","v":"Sous-action 1 = Quoi faire ?"},"A donner","A partager","A partager","A porter seul","A partager","A partager","A porter seul","A donner","A porter seul","A porter seul"]
[null,4,{"$f":"$B$21","v":"Sous-action 2"},{"$f":"\"A compléter costume \"&$B110&\" \"&D$35&\" \"&$C110","v":"A compléter costume 4 Action 1 Sous-action 2"},{"$f":"\"A compléter costume \"&$B110&\" \"&E$35&\" \"&$C110","v":"A compléter costume 4 Action 2 Sous-action 2"},{"$f":"\"A compléter costume \"&$B110&\" \"&F$35&\" \"&$C110","v":"A compléter costume 4 Action 3 Sous-action 2"},{"$f":"\"A compléter costume \"&$B110&\" \"&G$35&\" \"&$C110","v":"A compléter costume 4 Action 4 Sous-action 2"},"A compléter costume 4 Action 5 Sous-action 2","A compléter costume 4 Action 6 Sous-action 2","A compléter costume 4 Action 7 Sous-action 2","A compléter costume 4 Action 8 Sous-action 2","A compléter costume 4 Action 9 Sous-action 2","A compléter costume 4 Action 10 Sous-action 2"]
[null,4,{"$f":"C110&$B$30","v":"Sous-action 2 = Quoi faire ?"},"A porter seul","A porter seul","A porter seul","A porter seul","A partager","A partager","A porter seul","A porter seul","A donner","A porter seul"]
[null,4,{"$f":"$B$22","v":"Sous-action 3"},{"$f":"\"A compléter costume \"&$B112&\" \"&D$35&\" \"&$C112","v":"A compléter costume 4 Action 1 Sous-action 3"},{"$f":"\"A compléter costume \"&$B112&\" \"&E$35&\" \"&$C112","v":"A compléter costume 4 Action 2 Sous-action 3"},{"$f":"\"A compléter costume \"&$B112&\" \"&F$35&\" \"&$C112","v":"A compléter costume 4 Action 3 Sous-action 3"},{"$f":"\"A compléter costume \"&$B112&\" \"&G$35&\" \"&$C112","v":"A compléter costume 4 Action 4 Sous-action 3"},"A compléter costume 4 Action 5 Sous-action 3","A compléter costume 4 Action 6 Sous-action 3","A compléter costume 4 Action 7 Sous-action 3","A compléter costume 4 Action 8 Sous-action 3","A compléter costume 4 Action 9 Sous-action 3","A compléter costume 4 Action 10 Sous-action 3"]
[null,4,{"$f":"C112&$B$30","v":"Sous-action 3 = Quoi faire ?"},"A porter seul","A porter seul","A partager","A porter seul","A porter seul","A partager","A porter seul","A porter seul","A donner","A porter seul"]
[null,4,{"$f":"$B$23","v":"Sous-action 4"},{"$f":"\"A compléter costume \"&$B114&\" \"&D$35&\" \"&$C114","v":"A compléter costume 4 Action 1 Sous-action 4"},{"$f":"\"A compléter costume \"&$B114&\" \"&E$35&\" \"&$C114","v":"A compléter costume 4 Action 2 Sous-action 4"},{"$f":"\"A compléter costume \"&$B114&\" \"&F$35&\" \"&$C114","v":"A compléter costume 4 Action 3 Sous-action 4"},{"$f":"\"A compléter costume \"&$B114&\" \"&G$35&\" \"&$C114","v":"A compléter costume 4 Action 4 Sous-action 4"},"A compléter costume 4 Action 5 Sous-action 4","A compléter costume 4 Action 6 Sous-action 4","A compléter costume 4 Action 7 Sous-action 4","A compléter costume 4 Action 8 Sous-action 4","A compléter costume 4 Action 9 Sous-action 4","A compléter costume 4 Action 10 Sous-action 4"]
[null,4,{"$f":"C114&$B$30","v":"Sous-action 4 = Quoi faire ?"},"A donner","A partager","A donner","A partager","A donner","A porter seul","A porter seul","A partager","A partager","A partager"]
[null,4,{"$f":"$B$24","v":"Sous-action 5"},{"$f":"\"A compléter costume \"&$B116&\" \"&D$35&\" \"&$C116","v":"A compléter costume 4 Action 1 Sous-action 5"},{"$f":"\"A compléter costume \"&$B116&\" \"&E$35&\" \"&$C116","v":"A compléter costume 4 Action 2 Sous-action 5"},{"$f":"\"A compléter costume \"&$B116&\" \"&F$35&\" \"&$C116","v":"A compléter costume 4 Action 3 Sous-action 5"},{"$f":"\"A compléter costume \"&$B116&\" \"&G$35&\" \"&$C116","v":"A compléter costume 4 Action 4 Sous-action 5"},"A compléter costume 4 Action 5 Sous-action 5","A compléter costume 4 Action 6 Sous-action 5","A compléter costume 4 Action 7 Sous-action 5","A compléter costume 4 Action 8 Sous-action 5","A compléter costume 4 Action 9 Sous-action 5","A compléter costume 4 Action 10 Sous-action 5"]
[null,4,{"$f":"C116&$B$30","v":"Sous-action 5 = Quoi faire ?"},"A partager","A donner","A partager","A porter seul","A partager","A partager","A partager","A porter seul","A partager","A partager"]
[null,4,{"$f":"$B$25","v":"Sous-action 6"},{"$f":"\"A compléter costume \"&$B118&\" \"&D$35&\" \"&$C118","v":"A compléter costume 4 Action 1 Sous-action 6"},{"$f":"\"A compléter costume \"&$B118&\" \"&E$35&\" \"&$C118","v":"A compléter costume 4 Action 2 Sous-action 6"},{"$f":"\"A compléter costume \"&$B118&\" \"&F$35&\" \"&$C118","v":"A compléter costume 4 Action 3 Sous-action 6"},{"$f":"\"A compléter costume \"&$B118&\" \"&G$35&\" \"&$C118","v":"A compléter costume 4 Action 4 Sous-action 6"},"A compléter costume 4 Action 5 Sous-action 6","A compléter costume 4 Action 6 Sous-action 6","A compléter costume 4 Action 7 Sous-action 6","A compléter costume 4 Action 8 Sous-action 6","A compléter costume 4 Action 9 Sous-action 6","A compléter costume 4 Action 10 Sous-action 6"]
[null,4,{"$f":"C118&$B$30","v":"Sous-action 6 = Quoi faire ?"},"A partager","A partager","A porter seul","A partager","A partager","A partager","A partager","A partager","A porter seul","A partager"]
[null,4,{"$f":"$B$26","v":"Sous-action 7"},{"$f":"\"A compléter costume \"&$B120&\" \"&D$35&\" \"&$C120","v":"A compléter costume 4 Action 1 Sous-action 7"},{"$f":"\"A compléter costume \"&$B120&\" \"&E$35&\" \"&$C120","v":"A compléter costume 4 Action 2 Sous-action 7"},{"$f":"\"A compléter costume \"&$B120&\" \"&F$35&\" \"&$C120","v":"A compléter costume 4 Action 3 Sous-action 7"},{"$f":"\"A compléter costume \"&$B120&\" \"&G$35&\" \"&$C120","v":"A compléter costume 4 Action 4 Sous-action 7"},"A compléter costume 4 Action 5 Sous-action 7","A compléter costume 4 Action 6 Sous-action 7","A compléter costume 4 Action 7 Sous-action 7","A compléter costume 4 Action 8 Sous-action 7","A compléter costume 4 Action 9 Sous-action 7","A compléter costume 4 Action 10 Sous-action 7"]
[null,4,{"$f":"C120&$B$30","v":"Sous-action 7 = Quoi faire ?"},"A partager","A donner","A porter seul","A partager","A porter seul","A partager","A partager","A partager","A partager","A porter seul"]
[null,4,{"$f":"$B$27","v":"Sous-action 8"},{"$f":"\"A compléter costume \"&$B122&\" \"&D$35&\" \"&$C122","v":"A compléter costume 4 Action 1 Sous-action 8"},{"$f":"\"A compléter costume \"&$B122&\" \"&E$35&\" \"&$C122","v":"A compléter costume 4 Action 2 Sous-action 8"},{"$f":"\"A compléter costume \"&$B122&\" \"&F$35&\" \"&$C122","v":"A compléter costume 4 Action 3 Sous-action 8"},{"$f":"\"A compléter costume \"&$B122&\" \"&G$35&\" \"&$C122","v":"A compléter costume 4 Action 4 Sous-action 8"},"A compléter costume 4 Action 5 Sous-action 8","A compléter costume 4 Action 6 Sous-action 8","A compléter costume 4 Action 7 Sous-action 8","A compléter costume 4 Action 8 Sous-action 8","A compléter costume 4 Action 9 Sous-action 8","A compléter costume 4 Action 10 Sous-action 8"]
[null,4,{"$f":"C122&$B$30","v":"Sous-action 8 = Quoi faire ?"},"A donner","A porter seul","A partager","A partager","A partager","A partager","A partager","A donner","A partager","A partager"]
[null,4,{"$f":"$B$28","v":"Sous-action 9"},{"$f":"\"A compléter costume \"&$B124&\" \"&D$35&\" \"&$C124","v":"A compléter costume 4 Action 1 Sous-action 9"},{"$f":"\"A compléter costume \"&$B124&\" \"&E$35&\" \"&$C124","v":"A compléter costume 4 Action 2 Sous-action 9"},{"$f":"\"A compléter costume \"&$B124&\" \"&F$35&\" \"&$C124","v":"A compléter costume 4 Action 3 Sous-action 9"},{"$f":"\"A compléter costume \"&$B124&\" \"&G$35&\" \"&$C124","v":"A compléter costume 4 Action 4 Sous-action 9"},"A compléter costume 4 Action 5 Sous-action 9","A compléter costume 4 Action 6 Sous-action 9","A compléter costume 4 Action 7 Sous-action 9","A compléter costume 4 Action 8 Sous-action 9","A compléter costume 4 Action 9 Sous-action 9","A compléter costume 4 Action 10 Sous-action 9"]
[null,4,{"$f":"C124&$B$30","v":"Sous-action 9 = Quoi faire ?"},"A porter seul","A partager","A porter seul","A donner","A partager","A porter seul","A partager","A partager","A porter seul","A donner"]
[null,4,{"$f":"$B$29","v":"Sous-action 10"},{"$f":"\"A compléter costume \"&$B126&\" \"&D$35&\" \"&$C126","v":"A compléter costume 4 Action 1 Sous-action 10"},{"$f":"\"A compléter costume \"&$B126&\" \"&E$35&\" \"&$C126","v":"A compléter costume 4 Action 2 Sous-action 10"},{"$f":"\"A compléter costume \"&$B126&\" \"&F$35&\" \"&$C126","v":"A compléter costume 4 Action 3 Sous-action 10"},{"$f":"\"A compléter costume \"&$B126&\" \"&G$35&\" \"&$C126","v":"A compléter costume 4 Action 4 Sous-action 10"},"A compléter costume 4 Action 5 Sous-action 10","A compléter costume 4 Action 6 Sous-action 10","A compléter costume 4 Action 7 Sous-action 10","A compléter costume 4 Action 8 Sous-action 10","A compléter costume 4 Action 9 Sous-action 10","A compléter costume 4 Action 10 Sous-action 10"]
[null,4,{"$f":"C126&$B$30","v":"Sous-action 10 = Quoi faire ?"},"A porter seul","A porter seul","A partager","A porter seul","A porter seul","A donner","A partager","A partager","A partager","A partager"]
[null,{"$f":"+B8","v":5},{"$f":"+C8","v":"Père"},{"$f":"+K8","v":"Assurer les déplacements de mon/mes enfant(s)"},{"$f":"+L8","v":"M'assurer que mon/mes enfant(s) à des vêtements propres à mettre chaque jour."},"Accompagner mon/mes enfant(s) à ses activités extra-scolaires.","Assurer l'éducation de mon enfant.","Assurer un environnement sain, propre et sécurisé pour mon/mes enfant(s)","Apporter de l'amour à mon enfant selon son langage de l'amour (= cadeaux, moments de qualité, services rendus, toucher physique, paroles valorisantes)","Aider mon/mes enfant(s) dans ses apprentissages.","A compléter costume 5 Action 8","A compléter costume 5 Action 9","A compléter costume 5 Action 10"]
[null,{"$f":"+$B$128","v":5},"Utilité de cette action sur 10 / objectif ?",4,6,8,7,7,5,6,4,7,10]
[null,5,"Pourquoi cette action est-elle utile ou inutile ? Bénéfices réels/ objectif ?"]
[null,5,{"$f":"$B$20","v":"Sous-action 1"},"Aller chercher mon enfant à l'école chaque lundi et mardi soir.",{"$f":"\"A compléter costume \"&$B131&\" \"&E$35&\" \"&$C131","v":"A compléter costume 5 Action 2 Sous-action 1"},"A compléter costume 5 Action 3 Sous-action 1","A compléter costume 5 Action 4 Sous-action 1","A compléter costume 5 Action 5 Sous-action 1","A compléter costume 5 Action 6 Sous-action 1","A compléter costume 5 Action 7 Sous-action 1","A compléter costume 5 Action 8 Sous-action 1","A compléter costume 5 Action 9 Sous-action 1","A compléter costume 5 Action 10 Sous-action 1"]
[null,5,{"$f":"C131&$B$30","v":"Sous-action 1 = Quoi faire ?"},"A partager","A partager","A partager","A partager","A partager","A partager","A porter seul","A donner","A partager","A donner"]
[null,5,{"$f":"$B$21","v":"Sous-action 2"},{"$f":"\"A compléter costume \"&$B133&\" \"&D$35&\" \"&$C133","v":"A compléter costume 5 Action 1 Sous-action 2"},"A compléter costume 5 Action 2 Sous-action 2","A compléter costume 5 Action 3 Sous-action 2","A compléter costume 5 Action 4 Sous-action 2","A compléter costume 5 Action 5 Sous-action 2","A compléter costume 5 Action 6 Sous-action 2","A compléter costume 5 Action 7 Sous-action 2","A compléter costume 5 Action 8 Sous-action 2","A compléter costume 5 Action 9 Sous-action 2","A compléter costume 5 Action 10 Sous-action 2"]
[null,5,{"$f":"C133&$B$30","v":"Sous-action 2 = Quoi faire ?"},"A partager","A partager","A partager","A partager","A partager","A porter seul","A partager","A partager","A partager","A porter seul"]
[null,5,{"$f":"$B$22","v":"Sous-action 3"},{"$f":"\"A compléter costume \"&$B135&\" \"&D$35&\" \"&$C135","v":"A compléter costume 5 Action 1 Sous-action 3"},"A compléter costume 5 Action 2 Sous-action 3","A compléter costume 5 Action 3 Sous-action 3","A compléter costume 5 Action 4 Sous-action 3","A compléter costume 5 Action 5 Sous-action 3","A compléter costume 5 Action 6 Sous-action 3","A compléter costume 5 Action 7 Sous-action 3","A compléter costume 5 Action 8 Sous-action 3","A compléter costume 5 Action 9 Sous-action 3","A compléter costume 5 Action 10 Sous-action 3"]
[null,5,{"$f":"C135&$B$30","v":"Sous-action 3 = Quoi faire ?"},"A partager","A partager","A donner","A donner","A partager","A porter seul","A partager","A donner","A partager","A partager"]
[null,5,{"$f":"$B$23","v":"Sous-action 4"},{"$f":"\"A compléter costume \"&$B137&\" \"&D$35&\" \"&$C137","v":"A compléter costume 5 Action 1 Sous-action 4"},"A compléter costume 5 Action 2 Sous-action 4","A compléter costume 5 Action 3 Sous-action 4","A compléter costume 5 Action 4 Sous-action 4","A compléter costume 5 Action 5 Sous-action 4","A compléter costume 5 Action 6 Sous-action 4","A compléter costume 5 Action 7 Sous-action 4","A compléter costume 5 Action 8 Sous-action 4","A compléter costume 5 Action 9 Sous-action 4","A compléter costume 5 Action 10 Sous-action 4"]
[null,5,{"$f":"C137&$B$30","v":"Sous-action 4 = Quoi faire ?"},"A porter seul","A partager","A partager","A partager","A partager","A partager","A partager","A partager","A donner","A porter seul"]
[null,5,{"$f":"$B$24","v":"Sous-action 5"},{"$f":"\"A compléter costume \"&$B139&\" \"&D$35&\" \"&$C139","v":"A compléter costume 5 Action 1 Sous-action 5"},"A compléter costume 5 Action 2 Sous-action 5","A compléter costume 5 Action 3 Sous-action 5","A compléter costume 5 Action 4 Sous-action 5","A compléter costume 5 Action 5 Sous-action 5","A compléter costume 5 Action 6 Sous-action 5","A compléter costume 5 Action 7 Sous-action 5","A compléter costume 5 Action 8 Sous-action 5","A compléter costume 5 Action 9 Sous-action 5","A compléter costume 5 Action 10 Sous-action 5"]
[null,5,{"$f":"C139&$B$30","v":"Sous-action 5 = Quoi faire ?"},"A porter seul","A porter seul","A partager","A porter seul","A partager","A partager","A partager","A porter seul","A donner","A partager"]
[null,5,{"$f":"$B$25","v":"Sous-action 6"},{"$f":"\"A compléter costume \"&$B141&\" \"&D$35&\" \"&$C141","v":"A compléter costume 5 Action 1 Sous-action 6"},"A compléter costume 5 Action 2 Sous-action 6","A compléter costume 5 Action 3 Sous-action 6","A compléter costume 5 Action 4 Sous-action 6","A compléter costume 5 Action 5 Sous-action 6","A compléter costume 5 Action 6 Sous-action 6","A compléter costume 5 Action 7 Sous-action 6","A compléter costume 5 Action 8 Sous-action 6","A compléter costume 5 Action 9 Sous-action 6","A compléter costume 5 Action 10 Sous-action 6"]
[null,5,{"$f":"C141&$B$30","v":"Sous-action 6 = Quoi faire ?"},"A porter seul","A porter seul","A partager","A porter seul","A partager","A partager","A donner","A porter seul","A partager","A partager"]
[null,5,{"$f":"$B$26","v":"Sous-action 7"},{"$f":"\"A compléter costume \"&$B143&\" \"&D$35&\" \"&$C143","v":"A compléter costume 5 Action 1 Sous-action 7"},"A compléter costume 5 Action 2 Sous-action 7","A compléter costume 5 Action 3 Sous-action 7","A compléter costume 5 Action 4 Sous-action 7","A compléter costume 5 Action 5 Sous-action 7","A compléter costume 5 Action 6 Sous-action 7","A compléter costume 5 Action 7 Sous-action 7","A compléter costume 5 Action 8 Sous-action 7","A compléter costume 5 Action 9 Sous-action 7","A compléter costume 5 Action 10 Sous-action 7"]
[null,5,{"$f":"C143&$B$30","v":"Sous-action 7 = Quoi faire ?"},"A partager","A donner","A porter seul","A partager","A partager","A donner","A partager","A partager","A partager","A partager"]
[null,5,{"$f":"$B$27","v":"Sous-action 8"},{"$f":"\"A compléter costume \"&$B145&\" \"&D$35&\" \"&$C145","v":"A compléter costume 5 Action 1 Sous-action 8"},"A compléter costume 5 Action 2 Sous-action 8","A compléter costume 5 Action 3 Sous-action 8","A compléter costume 5 Action 4 Sous-action 8","A compléter costume 5 Action 5 Sous-action 8","A compléter costume 5 Action 6 Sous-action 8","A compléter costume 5 Action 7 Sous-action 8","A compléter costume 5 Action 8 Sous-action 8","A compléter costume 5 Action 9 Sous-action 8","A compléter costume 5 Action 10 Sous-action 8"]
[null,5,{"$f":"C145&$B$30","v":"Sous-action 8 = Quoi faire ?"},"A porter seul","A partager","A partager","A partager","A partager","A partager","A porter seul","A partager","A porter seul","A partager"]
[null,5,{"$f":"$B$28","v":"Sous-action 9"},{"$f":"\"A compléter costume \"&$B147&\" \"&D$35&\" \"&$C147","v":"A compléter costume 5 Action 1 Sous-action 9"},"A compléter costume 5 Action 2 Sous-action 9","A compléter costume 5 Action 3 Sous-action 9","A compléter costume 5 Action 4 Sous-action 9","A compléter costume 5 Action 5 Sous-action 9","A compléter costume 5 Action 6 Sous-action 9","A compléter costume 5 Action 7 Sous-action 9","A compléter costume 5 Action 8 Sous-action 9","A compléter costume 5 Action 9 Sous-action 9","A compléter costume 5 Action 10 Sous-action 9"]
[null,5,{"$f":"C147&$B$30","v":"Sous-action 9 = Quoi faire ?"},"A partager","A partager","A partager","A partager","A partager","A partager","A porter seul","A partager","A partager","A partager"]
[null,5,{"$f":"$B$29","v":"Sous-action 10"},{"$f":"\"A compléter costume \"&$B149&\" \"&D$35&\" \"&$C149","v":"A compléter costume 5 Action 1 Sous-action 10"},"A compléter costume 5 Action 2 Sous-action 10","A compléter costume 5 Action 3 Sous-action 10","A compléter costume 5 Action 4 Sous-action 10","A compléter costume 5 Action 5 Sous-action 10","A compléter costume 5 Action 6 Sous-action 10","A compléter costume 5 Action 7 Sous-action 10","A compléter costume 5 Action 8 Sous-action 10","A compléter costume 5 Action 9 Sous-action 10","A compléter costume 5 Action 10 Sous-action 10"]
[null,5,{"$f":"C149&$B$30","v":"Sous-action 10 = Quoi faire ?"},"A partager","A partager","A partager","A partager","A partager","A partager","A partager","A partager","A partager","A partager"]
[null,{"$f":"+B9","v":7},{"$f":"+C9","v":"Ami / copain (vie sociale)"},{"$f":"+K9","v":"Passer du temps avec mes ami(e)s"},{"$f":"+L9","v":"Rencontrer de nouvelles personnes"},"Appeler/écrire à mes ami(e)s X, Z, et A au moins 1 fois/mois.","Répondre à mes ami(e)s dans les 3 jours.","A compléter costume 7 Action 5","A compléter costume 7 Action 6","A compléter costume 7 Action 7","A compléter costume 7 Action 8","A compléter costume 7 Action 9","A compléter costume 7 Action 10"]
[null,{"$f":"+$B$151","v":7},"Utilité de cette action sur 10 / objectif ?"]
[null,7,"Pourquoi cette action est-elle utile ou inutile ? Bénéfices réels/ objectif ?","Parce que ggg","Car wwww","Parce que iii"]
[null,7,{"$f":"$B$20","v":"Sous-action 1"},{"$f":"\"A compléter costume \"&$B154&\" \"&D$35&\" \"&$C154","v":"A compléter costume 7 Action 1 Sous-action 1"},"A compléter costume 7 Action 2 Sous-action 1","A compléter costume 7 Action 3 Sous-action 1","A compléter costume 7 Action 4 Sous-action 1","A compléter costume 7 Action 5 Sous-action 1","A compléter costume 7 Action 6 Sous-action 1","A compléter costume 7 Action 7 Sous-action 1","A compléter costume 7 Action 8 Sous-action 1","A compléter costume 7 Action 9 Sous-action 1","A compléter costume 7 Action 10 Sous-action 1"]
[null,7,{"$f":"C154&$B$30","v":"Sous-action 1 = Quoi faire ?"},"A partager","A porter seul","A partager","A partager","A partager","A porter seul","A porter seul","A porter seul","A partager","A porter seul"]
[null,7,{"$f":"$B$21","v":"Sous-action 2"},"A compléter costume 7 Action 1 Sous-action 2","A compléter costume 7 Action 2 Sous-action 2","A compléter costume 7 Action 3 Sous-action 2","A compléter costume 7 Action 4 Sous-action 2","A compléter costume 7 Action 5 Sous-action 2","A compléter costume 7 Action 6 Sous-action 2","A compléter costume 7 Action 7 Sous-action 2","A compléter costume 7 Action 8 Sous-action 2","A compléter costume 7 Action 9 Sous-action 2","A compléter costume 7 Action 10 Sous-action 2"]
[null,7,{"$f":"C156&$B$30","v":"Sous-action 2 = Quoi faire ?"},"A porter seul","A porter seul","A partager","A partager","A porter seul","A porter seul","A partager","A donner","A porter seul","A porter seul"]
[null,7,{"$f":"$B$22","v":"Sous-action 3"},"A compléter costume 7 Action 1 Sous-action 3","A compléter costume 7 Action 2 Sous-action 3","A compléter costume 7 Action 3 Sous-action 3","A compléter costume 7 Action 4 Sous-action 3","A compléter costume 7 Action 5 Sous-action 3","A compléter costume 7 Action 6 Sous-action 3","A compléter costume 7 Action 7 Sous-action 3","A compléter costume 7 Action 8 Sous-action 3","A compléter costume 7 Action 9 Sous-action 3","A compléter costume 7 Action 10 Sous-action 3"]
[null,7,{"$f":"C158&$B$30","v":"Sous-action 3 = Quoi faire ?"},"A partager","A partager","A partager","A partager","A donner","A porter seul","A porter seul","A porter seul","A porter seul","A porter seul"]
[null,7,{"$f":"$B$23","v":"Sous-action 4"},"A compléter costume 7 Action 1 Sous-action 4","A compléter costume 7 Action 2 Sous-action 4","A compléter costume 7 Action 3 Sous-action 4","A compléter costume 7 Action 4 Sous-action 4","A compléter costume 7 Action 5 Sous-action 4","A compléter costume 7 Action 6 Sous-action 4","A compléter costume 7 Action 7 Sous-action 4","A compléter costume 7 Action 8 Sous-action 4","A compléter costume 7 Action 9 Sous-action 4","A compléter costume 7 Action 10 Sous-action 4"]
[null,7,{"$f":"C160&$B$30","v":"Sous-action 4 = Quoi faire ?"},"A partager","A partager","A partager","A partager","A partager","A partager","A partager","A partager","A partager","A partager"]
[null,7,{"$f":"$B$24","v":"Sous-action 5"},"A compléter costume 7 Action 1 Sous-action 5","A compléter costume 7 Action 2 Sous-action 5","A compléter costume 7 Action 3 Sous-action 5","A compléter costume 7 Action 4 Sous-action 5","A compléter costume 7 Action 5 Sous-action 5","A compléter costume 7 Action 6 Sous-action 5","A compléter costume 7 Action 7 Sous-action 5","A compléter costume 7 Action 8 Sous-action 5","A compléter costume 7 Action 9 Sous-action 5","A compléter costume 7 Action 10 Sous-action 5"]
[null,7,{"$f":"C162&$B$30","v":"Sous-action 5 = Quoi faire ?"},"A donner","A partager","A porter seul","A donner","A porter seul","A partager","A partager","A partager","A porter seul","A porter seul"]
[null,7,{"$f":"$B$25","v":"Sous-action 6"},"A compléter costume 7 Action 1 Sous-action 6","A compléter costume 7 Action 2 Sous-action 6","A compléter costume 7 Action 3 Sous-action 6","A compléter costume 7 Action 4 Sous-action 6","A compléter costume 7 Action 5 Sous-action 6","A compléter costume 7 Action 6 Sous-action 6","A compléter costume 7 Action 7 Sous-action 6","A compléter costume 7 Action 8 Sous-action 6","A compléter costume 7 Action 9 Sous-action 6","A compléter costume 7 Action 10 Sous-action 6"]
[null,7,{"$f":"C164&$B$30","v":"Sous-action 6 = Quoi faire ?"},"A porter seul","A partager","A partager","A partager","A partager","A porter seul","A partager","A partager","A porter seul","A donner"]
[null,7,{"$f":"$B$26","v":"Sous-action 7"},"A compléter costume 7 Action 1 Sous-action 7","A compléter costume 7 Action 2 Sous-action 7","A compléter costume 7 Action 3 Sous-action 7","A compléter costume 7 Action 4 Sous-action 7","A compléter costume 7 Action 5 Sous-action 7","A compléter costume 7 Action 6 Sous-action 7","A compléter costume 7 Action 7 Sous-action 7","A compléter costume 7 Action 8 Sous-action 7","A compléter costume 7 Action 9 Sous-action 7","A compléter costume 7 Action 10 Sous-action 7"]
[null,7,{"$f":"C166&$B$30","v":"Sous-action 7 = Quoi faire ?"},"A partager","A partager","A partager","A partager","A partager","A donner","A porter seul","A porter seul","A partager","A donner"]
[null,7,{"$f":"$B$27","v":"Sous-action 8"},"A compléter costume 7 Action 1 Sous-action 8","A compléter costume 7 Action 2 Sous-action 8","A compléter costume 7 Action 3 Sous-action 8","A compléter costume 7 Action 4 Sous-action 8","A compléter costume 7 Action 5 Sous-action 8","A compléter costume 7 Action 6 Sous-action 8","A compléter costume 7 Action 7 Sous-action 8","A compléter costume 7 Action 8 Sous-action 8","A compléter costume 7 Action 9 Sous-action 8","A compléter costume 7 Action 10 Sous-action 8"]
[null,7,{"$f":"C168&$B$30","v":"Sous-action 8 = Quoi faire ?"},"A porter seul","A partager","A partager","A partager","A partager","A donner","A porter seul","A porter seul","A porter seul","A porter seul"]
[null,7,{"$f":"$B$28","v":"Sous-action 9"},"A compléter costume 7 Action 1 Sous-action 9","A compléter costume 7 Action 2 Sous-action 9","A compléter costume 7 Action 3 Sous-action 9","A compléter costume 7 Action 4 Sous-action 9","A compléter costume 7 Action 5 Sous-action 9","A compléter costume 7 Action 6 Sous-action 9","A compléter costume 7 Action 7 Sous-action 9","A compléter costume 7 Action 8 Sous-action 9","A compléter costume 7 Action 9 Sous-action 9","A compléter costume 7 Action 10 Sous-action 9"]
[null,7,{"$f":"C170&$B$30","v":"Sous-action 9 = Quoi faire ?"},"A porter seul","A partager","A partager","A porter seul","A partager","A partager","A partager","A partager","A porter seul","A porter seul"]
[null,7,{"$f":"$B$29","v":"Sous-action 10"},"A compléter costume 7 Action 1 Sous-action 10","A compléter costume 7 Action 2 Sous-action 10","A compléter costume 7 Action 3 Sous-action 10","A compléter costume 7 Action 4 Sous-action 10","A compléter costume 7 Action 5 Sous-action 10","A compléter costume 7 Action 6 Sous-action 10","A compléter costume 7 Action 7 Sous-action 10","A compléter costume 7 Action 8 Sous-action 10","A compléter costume 7 Action 9 Sous-action 10","A compléter costume 7 Action 10 Sous-action 10"]
[null,7,{"$f":"C172&$B$30","v":"Sous-action 10 = Quoi faire ?"},"A partager","A partager","A partager","A partager","A donner","A partager","A porter seul","A porter seul","A porter seul","A porter seul"]
[null,{"$f":"+B10","v":8},{"$f":"+C10","v":"Loisirs (activités, clubs, etc.)"},{"$f":"+K10","v":"Lire 30 minutes/semaine un livre \"plaisir\"."},{"$f":"+L10","v":"Participer au carnaval de ma ville avec mon enfant."},"Prendre 7 jours de vacances tous les 3 mois.","Pratiquer une activité qui me plaît chaque semaine, pendant x heures minimum.","Visiter des expositions/lieux/musées","Assister à des concerts : au moins 4 /an.","A compléter costume 8 Action 7","A compléter costume 8 Action 8","A compléter costume 8 Action 9","A compléter costume 8 Action 10"]
[null,{"$f":"+$B$174","v":8},"Utilité de cette action sur 10 / objectif ?"]
[null,8,"Pourquoi cette action est-elle utile ou inutile ? Bénéfices réels/ objectif ?"]
[null,8,{"$f":"$B$20","v":"Sous-action 1"},{"$f":"\"A compléter costume \"&$B177&\" \"&D$35&\" \"&$C177","v":"A compléter costume 8 Action 1 Sous-action 1"},"A compléter costume 8 Action 2 Sous-action 1","A compléter costume 8 Action 3 Sous-action 1","A compléter costume 8 Action 4 Sous-action 1","A compléter costume 8 Action 5 Sous-action 1","A compléter costume 8 Action 6 Sous-action 1","A compléter costume 8 Action 7 Sous-action 1","A compléter costume 8 Action 8 Sous-action 1","A compléter costume 8 Action 9 Sous-action 1","A compléter costume 8 Action 10 Sous-action 1"]
[null,8,{"$f":"C177&$B$30","v":"Sous-action 1 = Quoi faire ?"},"A porter seul","A partager","A partager","A donner","A porter seul","A porter seul","A partager","A porter seul","A partager","A partager"]
[null,8,{"$f":"$B$21","v":"Sous-action 2"},{"$f":"\"A compléter costume \"&$B179&\" \"&D$35&\" \"&$C179","v":"A compléter costume 8 Action 1 Sous-action 2"},"A compléter costume 8 Action 2 Sous-action 2","A compléter costume 8 Action 3 Sous-action 2","A compléter costume 8 Action 4 Sous-action 2","A compléter costume 8 Action 5 Sous-action 2","A compléter costume 8 Action 6 Sous-action 2","A compléter costume 8 Action 7 Sous-action 2","A compléter costume 8 Action 8 Sous-action 2","A compléter costume 8 Action 9 Sous-action 2","A compléter costume 8 Action 10 Sous-action 2"]
[null,8,{"$f":"C179&$B$30","v":"Sous-action 2 = Quoi faire ?"},"A porter seul","A porter seul","A porter seul","A partager","A porter seul","A porter seul","A donner","A porter seul","A donner","A porter seul"]
[null,8,{"$f":"$B$22","v":"Sous-action 3"},{"$f":"\"A compléter costume \"&$B181&\" \"&D$35&\" \"&$C181","v":"A compléter costume 8 Action 1 Sous-action 3"},"A compléter costume 8 Action 2 Sous-action 3","A compléter costume 8 Action 3 Sous-action 3","A compléter costume 8 Action 4 Sous-action 3","A compléter costume 8 Action 5 Sous-action 3","A compléter costume 8 Action 6 Sous-action 3","A compléter costume 8 Action 7 Sous-action 3","A compléter costume 8 Action 8 Sous-action 3","A compléter costume 8 Action 9 Sous-action 3","A compléter costume 8 Action 10 Sous-action 3"]
[null,8,{"$f":"C181&$B$30","v":"Sous-action 3 = Quoi faire ?"},"A donner","A partager","A donner","A partager","A porter seul","A porter seul","A partager","A donner","A porter seul","A porter seul"]
[null,8,{"$f":"$B$23","v":"Sous-action 4"},{"$f":"\"A compléter costume \"&$B183&\" \"&D$35&\" \"&$C183","v":"A compléter costume 8 Action 1 Sous-action 4"},"A compléter costume 8 Action 2 Sous-action 4","A compléter costume 8 Action 3 Sous-action 4","A compléter costume 8 Action 4 Sous-action 4","A compléter costume 8 Action 5 Sous-action 4","A compléter costume 8 Action 6 Sous-action 4","A compléter costume 8 Action 7 Sous-action 4","A compléter costume 8 Action 8 Sous-action 4","A compléter costume 8 Action 9 Sous-action 4","A compléter costume 8 Action 10 Sous-action 4"]
[null,8,{"$f":"C183&$B$30","v":"Sous-action 4 = Quoi faire ?"},"A porter seul","A porter seul","A partager","A porter seul","A porter seul","A donner","A partager","A porter seul","A porter seul","A partager"]
[null,8,{"$f":"$B$24","v":"Sous-action 5"},{"$f":"\"A compléter costume \"&$B185&\" \"&D$35&\" \"&$C185","v":"A compléter costume 8 Action 1 Sous-action 5"},"A compléter costume 8 Action 2 Sous-action 5","A compléter costume 8 Action 3 Sous-action 5","A compléter costume 8 Action 4 Sous-action 5","A compléter costume 8 Action 5 Sous-action 5","A compléter costume 8 Action 6 Sous-action 5","A compléter costume 8 Action 7 Sous-action 5","A compléter costume 8 Action 8 Sous-action 5","A compléter costume 8 Action 9 Sous-action 5","A compléter costume 8 Action 10 Sous-action 5"]
[null,8,{"$f":"C185&$B$30","v":"Sous-action 5 = Quoi faire ?"},"A partager","A donner","A partager","A partager","A partager","A donner","A porter seul","A partager","A donner","A donner"]
[null,8,{"$f":"$B$25","v":"Sous-action 6"},{"$f":"\"A compléter costume \"&$B187&\" \"&D$35&\" \"&$C187","v":"A compléter costume 8 Action 1 Sous-action 6"},"A compléter costume 8 Action 2 Sous-action 6","A compléter costume 8 Action 3 Sous-action 6","A compléter costume 8 Action 4 Sous-action 6","A compléter costume 8 Action 5 Sous-action 6","A compléter costume 8 Action 6 Sous-action 6","A compléter costume 8 Action 7 Sous-action 6","A compléter costume 8 Action 8 Sous-action 6","A compléter costume 8 Action 9 Sous-action 6","A compléter costume 8 Action 10 Sous-action 6"]
[null,8,{"$f":"C187&$B$30","v":"Sous-action 6 = Quoi faire ?"},"A porter seul","A porter seul","A porter seul","A porter seul","A donner","A partager","A porter seul","A partager","A partager","A partager"]
[null,8,{"$f":"$B$26","v":"Sous-action 7"},{"$f":"\"A compléter costume \"&$B189&\" \"&D$35&\" \"&$C189","v":"A compléter costume 8 Action 1 Sous-action 7"},"A compléter costume 8 Action 2 Sous-action 7","A compléter costume 8 Action 3 Sous-action 7","A compléter costume 8 Action 4 Sous-action 7","A compléter costume 8 Action 5 Sous-action 7","A compléter costume 8 Action 6 Sous-action 7","A compléter costume 8 Action 7 Sous-action 7","A compléter costume 8 Action 8 Sous-action 7","A compléter costume 8 Action 9 Sous-action 7","A compléter costume 8 Action 10 Sous-action 7"]
[null,8,{"$f":"C189&$B$30","v":"Sous-action 7 = Quoi faire ?"},"A partager","A partager","A donner","A partager","A partager","A partager","A porter seul","A porter seul","A partager","A porter seul"]
[null,8,{"$f":"$B$27","v":"Sous-action 8"},{"$f":"\"A compléter costume \"&$B191&\" \"&D$35&\" \"&$C191","v":"A compléter costume 8 Action 1 Sous-action 8"},"A compléter costume 8 Action 2 Sous-action 8","A compléter costume 8 Action 3 Sous-action 8","A compléter costume 8 Action 4 Sous-action 8","A compléter costume 8 Action 5 Sous-action 8","A compléter costume 8 Action 6 Sous-action 8","A compléter costume 8 Action 7 Sous-action 8","A compléter costume 8 Action 8 Sous-action 8","A compléter costume 8 Action 9 Sous-action 8","A compléter costume 8 Action 10 Sous-action 8"]
[null,8,{"$f":"C191&$B$30","v":"Sous-action 8 = Quoi faire ?"},"A porter seul","A porter seul","A partager","A partager","A porter seul","A porter seul","A donner","A partager","A partager","A donner"]
[null,8,{"$f":"$B$28","v":"Sous-action 9"},{"$f":"\"A compléter costume \"&$B193&\" \"&D$35&\" \"&$C193","v":"A compléter costume 8 Action 1 Sous-action 9"},"A compléter costume 8 Action 2 Sous-action 9","A compléter costume 8 Action 3 Sous-action 9","A compléter costume 8 Action 4 Sous-action 9","A compléter costume 8 Action 5 Sous-action 9","A compléter costume 8 Action 6 Sous-action 9","A compléter costume 8 Action 7 Sous-action 9","A compléter costume 8 Action 8 Sous-action 9","A compléter costume 8 Action 9 Sous-action 9","A compléter costume 8 Action 10 Sous-action 9"]
[null,8,{"$f":"C193&$B$30","v":"Sous-action 9 = Quoi faire ?"},"A porter seul","A porter seul","A porter seul","A partager","A porter seul","A partager","A partager","A partager","A partager","A donner"]
[null,8,{"$f":"$B$29","v":"Sous-action 10"},{"$f":"\"A compléter costume \"&$B195&\" \"&D$35&\" \"&$C195","v":"A compléter costume 8 Action 1 Sous-action 10"},"A compléter costume 8 Action 2 Sous-action 10","A compléter costume 8 Action 3 Sous-action 10","A compléter costume 8 Action 4 Sous-action 10","A compléter costume 8 Action 5 Sous-action 10","A compléter costume 8 Action 6 Sous-action 10","A compléter costume 8 Action 7 Sous-action 10","A compléter costume 8 Action 8 Sous-action 10","A compléter costume 8 Action 9 Sous-action 10","A compléter costume 8 Action 10 Sous-action 10"]
[null,8,{"$f":"C195&$B$30","v":"Sous-action 10 = Quoi faire ?"},"A partager","A porter seul","A partager","A partager","A partager","A partager","A porter seul","A porter seul","A partager","A partager"]
[null,{"$f":"+B11","v":9},{"$f":"+C11","v":"Dormeur"},{"$f":"+K11","v":"Suivre un rituel du coucher identique tous les soirs."},{"$f":"+L11","v":"Ne pas regarder d'écrans au moins 1h avant de me coucher."},"Me lever chaque matin à une heure fixe.","Méditer, visualiser, ou prendre un temps calme chaque jour de 10 minutes au réveil / à 13h00 / au coucher.","Manger léger tous les soirs du lundi au vendredi, sans sucre ni café.","A compléter costume 9 Action 6","A compléter costume 9 Action 7","A compléter costume 9 Action 8","A compléter costume 9 Action 9","A compléter costume 9 Action 10"]
[null,{"$f":"+$B$197","v":9},"Utilité de cette action sur 10 / objectif ?"]
[null,9,"Pourquoi cette action est-elle utile ou inutile ? Bénéfices réels/ objectif ?"]
[null,9,{"$f":"$B$20","v":"Sous-action 1"},"Me coucher chaque soir à heure fixe.",{"$f":"\"A compléter costume \"&$B200&\" \"&E$35&\" \"&$C200","v":"A compléter costume 9 Action 2 Sous-action 1"},"A compléter costume 9 Action 3 Sous-action 1","A compléter costume 9 Action 4 Sous-action 1","A compléter costume 9 Action 5 Sous-action 1","A compléter costume 9 Action 6 Sous-action 1","A compléter costume 9 Action 7 Sous-action 1","A compléter costume 9 Action 8 Sous-action 1","A compléter costume 9 Action 9 Sous-action 1","A compléter costume 9 Action 10 Sous-action 1"]
[null,9,{"$f":"C200&$B$30","v":"Sous-action 1 = Quoi faire ?"},"A porter seul","A partager","A partager","A partager","A porter seul","A porter seul","A porter seul","A porter seul","A porter seul","A porter seul"]
[null,9,{"$f":"$B$21","v":"Sous-action 2"},{"$f":"\"A compléter costume \"&$B202&\" \"&D$35&\" \"&$C202","v":"A compléter costume 9 Action 1 Sous-action 2"},"A compléter costume 9 Action 2 Sous-action 2","A compléter costume 9 Action 3 Sous-action 2","A compléter costume 9 Action 4 Sous-action 2","A compléter costume 9 Action 5 Sous-action 2","A compléter costume 9 Action 6 Sous-action 2","A compléter costume 9 Action 7 Sous-action 2","A compléter costume 9 Action 8 Sous-action 2","A compléter costume 9 Action 9 Sous-action 2","A compléter costume 9 Action 10 Sous-action 2"]
[null,9,{"$f":"C202&$B$30","v":"Sous-action 2 = Quoi faire ?"},"A donner","A porter seul","A porter seul","A porter seul","A porter seul","A partager","A porter seul","A porter seul","A porter seul","A donner"]
[null,9,{"$f":"$B$22","v":"Sous-action 3"},{"$f":"\"A compléter costume \"&$B204&\" \"&D$35&\" \"&$C204","v":"A compléter costume 9 Action 1 Sous-action 3"},"A compléter costume 9 Action 2 Sous-action 3","A compléter costume 9 Action 3 Sous-action 3","A compléter costume 9 Action 4 Sous-action 3","A compléter costume 9 Action 5 Sous-action 3","A compléter costume 9 Action 6 Sous-action 3","A compléter costume 9 Action 7 Sous-action 3","A compléter costume 9 Action 8 Sous-action 3","A compléter costume 9 Action 9 Sous-action 3","A compléter costume 9 Action 10 Sous-action 3"]
[null,9,{"$f":"C204&$B$30","v":"Sous-action 3 = Quoi faire ?"},"A donner","A porter seul","A porter seul","A porter seul","A porter seul","A porter seul","A porter seul","A porter seul","A partager","A porter seul"]
[null,9,{"$f":"$B$23","v":"Sous-action 4"},{"$f":"\"A compléter costume \"&$B206&\" \"&D$35&\" \"&$C206","v":"A compléter costume 9 Action 1 Sous-action 4"},"A compléter costume 9 Action 2 Sous-action 4","A compléter costume 9 Action 3 Sous-action 4","A compléter costume 9 Action 4 Sous-action 4","A compléter costume 9 Action 5 Sous-action 4","A compléter costume 9 Action 6 Sous-action 4","A compléter costume 9 Action 7 Sous-action 4","A compléter costume 9 Action 8 Sous-action 4","A compléter costume 9 Action 9 Sous-action 4","A compléter costume 9 Action 10 Sous-action 4"]
[null,9,{"$f":"C206&$B$30","v":"Sous-action 4 = Quoi faire ?"},"A porter seul","A porter seul","A porter seul","A porter seul","A partager","A porter seul","A porter seul","A partager","A donner","A porter seul"]
[null,9,{"$f":"$B$24","v":"Sous-action 5"},{"$f":"\"A compléter costume \"&$B208&\" \"&D$35&\" \"&$C208","v":"A compléter costume 9 Action 1 Sous-action 5"},"A compléter costume 9 Action 2 Sous-action 5","A compléter costume 9 Action 3 Sous-action 5","A compléter costume 9 Action 4 Sous-action 5","A compléter costume 9 Action 5 Sous-action 5","A compléter costume 9 Action 6 Sous-action 5","A compléter costume 9 Action 7 Sous-action 5","A compléter costume 9 Action 8 Sous-action 5","A compléter costume 9 Action 9 Sous-action 5","A compléter costume 9 Action 10 Sous-action 5"]
[null,9,{"$f":"C208&$B$30","v":"Sous-action 5 = Quoi faire ?"},"A partager","A partager","A porter seul","A partager","A partager","A porter seul","A porter seul","A porter seul","A partager","A porter seul"]
[null,9,{"$f":"$B$25","v":"Sous-action 6"},{"$f":"\"A compléter costume \"&$B210&\" \"&D$35&\" \"&$C210","v":"A compléter costume 9 Action 1 Sous-action 6"},"A compléter costume 9 Action 2 Sous-action 6","A compléter costume 9 Action 3 Sous-action 6","A compléter costume 9 Action 4 Sous-action 6","A compléter costume 9 Action 5 Sous-action 6","A compléter costume 9 Action 6 Sous-action 6","A compléter costume 9 Action 7 Sous-action 6","A compléter costume 9 Action 8 Sous-action 6","A compléter costume 9 Action 9 Sous-action 6","A compléter costume 9 Action 10 Sous-action 6"]
[null,9,{"$f":"C210&$B$30","v":"Sous-action 6 = Quoi faire ?"},"A partager","A porter seul","A partager","A porter seul","A partager","A partager","A partager","A donner","A porter seul","A partager"]
[null,9,{"$f":"$B$26","v":"Sous-action 7"},{"$f":"\"A compléter costume \"&$B212&\" \"&D$35&\" \"&$C212","v":"A compléter costume 9 Action 1 Sous-action 7"},"A compléter costume 9 Action 2 Sous-action 7","A compléter costume 9 Action 3 Sous-action 7","A compléter costume 9 Action 4 Sous-action 7","A compléter costume 9 Action 5 Sous-action 7","A compléter costume 9 Action 6 Sous-action 7","A compléter costume 9 Action 7 Sous-action 7","A compléter costume 9 Action 8 Sous-action 7","A compléter costume 9 Action 9 Sous-action 7","A compléter costume 9 Action 10 Sous-action 7"]
[null,9,{"$f":"C212&$B$30","v":"Sous-action 7 = Quoi faire ?"},"A porter seul","A partager","A porter seul","A porter seul","A porter seul","A donner","A partager","A donner","A donner","A porter seul"]
[null,9,{"$f":"$B$27","v":"Sous-action 8"},{"$f":"\"A compléter costume \"&$B214&\" \"&D$35&\" \"&$C214","v":"A compléter costume 9 Action 1 Sous-action 8"},"A compléter costume 9 Action 2 Sous-action 8","A compléter costume 9 Action 3 Sous-action 8","A compléter costume 9 Action 4 Sous-action 8","A compléter costume 9 Action 5 Sous-action 8","A compléter costume 9 Action 6 Sous-action 8","A compléter costume 9 Action 7 Sous-action 8","A compléter costume 9 Action 8 Sous-action 8","A compléter costume 9 Action 9 Sous-action 8","A compléter costume 9 Action 10 Sous-action 8"]
[null,9,{"$f":"C214&$B$30","v":"Sous-action 8 = Quoi faire ?"},"A donner","A porter seul","A porter seul","A porter seul","A donner","A donner","A partager","A porter seul","A porter seul","A porter seul"]
[null,9,{"$f":"$B$28","v":"Sous-action 9"},{"$f":"\"A compléter costume \"&$B216&\" \"&D$35&\" \"&$C216","v":"A compléter costume 9 Action 1 Sous-action 9"},"A compléter costume 9 Action 2 Sous-action 9","A compléter costume 9 Action 3 Sous-action 9","A compléter costume 9 Action 4 Sous-action 9","A compléter costume 9 Action 5 Sous-action 9","A compléter costume 9 Action 6 Sous-action 9","A compléter costume 9 Action 7 Sous-action 9","A compléter costume 9 Action 8 Sous-action 9","A compléter costume 9 Action 9 Sous-action 9","A compléter costume 9 Action 10 Sous-action 9"]
[null,9,{"$f":"C216&$B$30","v":"Sous-action 9 = Quoi faire ?"},"A partager","A donner","A partager","A donner","A porter seul","A porter seul","A partager","A porter seul","A porter seul","A donner"]
[null,9,{"$f":"$B$29","v":"Sous-action 10"},{"$f":"\"A compléter costume \"&$B218&\" \"&D$35&\" \"&$C218","v":"A compléter costume 9 Action 1 Sous-action 10"},"A compléter costume 9 Action 2 Sous-action 10","A compléter costume 9 Action 3 Sous-action 10","A compléter costume 9 Action 4 Sous-action 10","A compléter costume 9 Action 5 Sous-action 10","A compléter costume 9 Action 6 Sous-action 10","A compléter costume 9 Action 7 Sous-action 10","A compléter costume 9 Action 8 Sous-action 10","A compléter costume 9 Action 9 Sous-action 10","A compléter costume 9 Action 10 Sous-action 10"]
[null,9,{"$f":"C218&$B$30","v":"Sous-action 10 = Quoi faire ?"},"A partager","A partager","A partager","A porter seul","A partager","A porter seul","A partager","A porter seul","A porter seul","A porter seul"]
[null,{"$f":"+B12","v":10},{"$f":"+C12","v":"Sportif"},{"$f":"+K12","v":"Acheter mes tenues et mon matériel de sport."},{"$f":"+L12","v":"Courir 2 fois / semaine pendant 30 minutes minimum."},"M'étirer 10 minutes tous les soirs à 21h00.","A compléter costume 10 Action 4","A compléter costume 10 Action 5","A compléter costume 10 Action 6","A compléter costume 10 Action 7","A compléter costume 10 Action 8","A compléter costume 10 Action 9","A compléter costume 10 Action 10"]
[null,{"$f":"+$B$220","v":10},"Utilité de cette action sur 10 / objectif ?"]
[null,10,"Pourquoi cette action est-elle utile ou inutile ? Bénéfices réels/ objectif ?"]
[null,10,{"$f":"$B$20","v":"Sous-action 1"},{"$f":"\"A compléter costume \"&$B223&\" \"&D$35&\" \"&$C223","v":"A compléter costume 10 Action 1 Sous-action 1"},"A compléter costume 10 Action 2 Sous-action 1","A compléter costume 10 Action 3 Sous-action 1","A compléter costume 10 Action 4 Sous-action 1","A compléter costume 10 Action 5 Sous-action 1","A compléter costume 10 Action 6 Sous-action 1","A compléter costume 10 Action 7 Sous-action 1","A compléter costume 10 Action 8 Sous-action 1","A compléter costume 10 Action 9 Sous-action 1","A compléter costume 10 Action 10 Sous-action 1"]
[null,10,{"$f":"C223&$B$30","v":"Sous-action 1 = Quoi faire ?"},"A partager","A partager","A partager","A partager","A donner","A partager","A porter seul","A partager","A partager","A porter seul"]
[null,10,{"$f":"$B$21","v":"Sous-action 2"},{"$f":"\"A compléter costume \"&$B225&\" \"&D$35&\" \"&$C225","v":"A compléter costume 10 Action 1 Sous-action 2"},"A compléter costume 10 Action 2 Sous-action 2","A compléter costume 10 Action 3 Sous-action 2","A compléter costume 10 Action 4 Sous-action 2","A compléter costume 10 Action 5 Sous-action 2","A compléter costume 10 Action 6 Sous-action 2","A compléter costume 10 Action 7 Sous-action 2","A compléter costume 10 Action 8 Sous-action 2","A compléter costume 10 Action 9 Sous-action 2","A compléter costume 10 Action 10 Sous-action 2"]
[null,10,{"$f":"C225&$B$30","v":"Sous-action 2 = Quoi faire ?"},"A donner","A partager","A donner","A partager","A donner","A porter seul","A partager","A porter seul","A porter seul","A partager"]
[null,10,{"$f":"$B$22","v":"Sous-action 3"},{"$f":"\"A compléter costume \"&$B227&\" \"&D$35&\" \"&$C227","v":"A compléter costume 10 Action 1 Sous-action 3"},"A compléter costume 10 Action 2 Sous-action 3","A compléter costume 10 Action 3 Sous-action 3","A compléter costume 10 Action 4 Sous-action 3","A compléter costume 10 Action 5 Sous-action 3","A compléter costume 10 Action 6 Sous-action 3","A compléter costume 10 Action 7 Sous-action 3","A compléter costume 10 Action 8 Sous-action 3","A compléter costume 10 Action 9 Sous-action 3","A compléter costume 10 Action 10 Sous-action 3"]
[null,10,{"$f":"C227&$B$30","v":"Sous-action 3 = Quoi faire ?"},"A partager","A partager","A partager","A donner","A porter seul","A porter seul","A donner","A donner","A donner","A donner"]
[null,10,{"$f":"$B$23","v":"Sous-action 4"},{"$f":"\"A compléter costume \"&$B229&\" \"&D$35&\" \"&$C229","v":"A compléter costume 10 Action 1 Sous-action 4"},"A compléter costume 10 Action 2 Sous-action 4","A compléter costume 10 Action 3 Sous-action 4","A compléter costume 10 Action 4 Sous-action 4","A compléter costume 10 Action 5 Sous-action 4","A compléter costume 10 Action 6 Sous-action 4","A compléter costume 10 Action 7 Sous-action 4","A compléter costume 10 Action 8 Sous-action 4","A compléter costume 10 Action 9 Sous-action 4","A compléter costume 10 Action 10 Sous-action 4"]
[null,10,{"$f":"C229&$B$30","v":"Sous-action 4 = Quoi faire ?"},"A donner","A donner","A partager","A partager","A porter seul","A porter seul","A donner","A donner","A partager","A donner"]
[null,10,{"$f":"$B$24","v":"Sous-action 5"},{"$f":"\"A compléter costume \"&$B231&\" \"&D$35&\" \"&$C231","v":"A compléter costume 10 Action 1 Sous-action 5"},"A compléter costume 10 Action 2 Sous-action 5","A compléter costume 10 Action 3 Sous-action 5","A compléter costume 10 Action 4 Sous-action 5","A compléter costume 10 Action 5 Sous-action 5","A compléter costume 10 Action 6 Sous-action 5","A compléter costume 10 Action 7 Sous-action 5","A compléter costume 10 Action 8 Sous-action 5","A compléter costume 10 Action 9 Sous-action 5","A compléter costume 10 Action 10 Sous-action 5"]
[null,10,{"$f":"C231&$B$30","v":"Sous-action 5 = Quoi faire ?"},"A partager","A donner","A partager","A partager","A porter seul","A partager","A porter seul","A partager","A porter seul","A porter seul"]
[null,10,{"$f":"$B$25","v":"Sous-action 6"},{"$f":"\"A compléter costume \"&$B233&\" \"&D$35&\" \"&$C233","v":"A compléter costume 10 Action 1 Sous-action 6"},"A compléter costume 10 Action 2 Sous-action 6","A compléter costume 10 Action 3 Sous-action 6","A compléter costume 10 Action 4 Sous-action 6","A compléter costume 10 Action 5 Sous-action 6","A compléter costume 10 Action 6 Sous-action 6","A compléter costume 10 Action 7 Sous-action 6","A compléter costume 10 Action 8 Sous-action 6","A compléter costume 10 Action 9 Sous-action 6","A compléter costume 10 Action 10 Sous-action 6"]
[null,10,{"$f":"C233&$B$30","v":"Sous-action 6 = Quoi faire ?"},"A partager","A partager","A partager","A donner","A porter seul","A partager","A donner","A donner","A donner","A partager"]
[null,10,{"$f":"$B$26","v":"Sous-action 7"},{"$f":"\"A compléter costume \"&$B235&\" \"&D$35&\" \"&$C235","v":"A compléter costume 10 Action 1 Sous-action 7"},"A compléter costume 10 Action 2 Sous-action 7","A compléter costume 10 Action 3 Sous-action 7","A compléter costume 10 Action 4 Sous-action 7","A compléter costume 10 Action 5 Sous-action 7","A compléter costume 10 Action 6 Sous-action 7","A compléter costume 10 Action 7 Sous-action 7","A compléter costume 10 Action 8 Sous-action 7","A compléter costume 10 Action 9 Sous-action 7","A compléter costume 10 Action 10 Sous-action 7"]
[null,10,{"$f":"C235&$B$30","v":"Sous-action 7 = Quoi faire ?"},"A partager","A partager","A donner","A partager","A partager","A porter seul","A porter seul","A partager","A partager","A partager"]
[null,10,{"$f":"$B$27","v":"Sous-action 8"},{"$f":"\"A compléter costume \"&$B237&\" \"&D$35&\" \"&$C237","v":"A compléter costume 10 Action 1 Sous-action 8"},"A compléter costume 10 Action 2 Sous-action 8","A compléter costume 10 Action 3 Sous-action 8","A compléter costume 10 Action 4 Sous-action 8","A compléter costume 10 Action 5 Sous-action 8","A compléter costume 10 Action 6 Sous-action 8","A compléter costume 10 Action 7 Sous-action 8","A compléter costume 10 Action 8 Sous-action 8","A compléter costume 10 Action 9 Sous-action 8","A compléter costume 10 Action 10 Sous-action 8"]
[null,10,{"$f":"C237&$B$30","v":"Sous-action 8 = Quoi faire ?"},"A partager","A partager","A partager","A partager","A donner","A partager","A partager","A partager","A donner","A donner"]
[null,10,{"$f":"$B$28","v":"Sous-action 9"},{"$f":"\"A compléter costume \"&$B239&\" \"&D$35&\" \"&$C239","v":"A compléter costume 10 Action 1 Sous-action 9"},"A compléter costume 10 Action 2 Sous-action 9","A compléter costume 10 Action 3 Sous-action 9","A compléter costume 10 Action 4 Sous-action 9","A compléter costume 10 Action 5 Sous-action 9","A compléter costume 10 Action 6 Sous-action 9","A compléter costume 10 Action 7 Sous-action 9","A compléter costume 10 Action 8 Sous-action 9","A compléter costume 10 Action 9 Sous-action 9","A compléter costume 10 Action 10 Sous-action 9"]
[null,10,{"$f":"C239&$B$30","v":"Sous-action 9 = Quoi faire ?"},"A partager","A donner","A partager","A partager","A partager","A partager","A donner","A partager","A partager","A partager"]
[null,10,{"$f":"$B$29","v":"Sous-action 10"},{"$f":"\"A compléter costume \"&$B241&\" \"&D$35&\" \"&$C241","v":"A compléter costume 10 Action 1 Sous-action 10"},"A compléter costume 10 Action 2 Sous-action 10","A compléter costume 10 Action 3 Sous-action 10","A compléter costume 10 Action 4 Sous-action 10","A compléter costume 10 Action 5 Sous-action 10","A compléter costume 10 Action 6 Sous-action 10","A compléter costume 10 Action 7 Sous-action 10","A compléter costume 10 Action 8 Sous-action 10","A compléter costume 10 Action 9 Sous-action 10","A compléter costume 10 Action 10 Sous-action 10"]
[null,10,{"$f":"C241&$B$30","v":"Sous-action 10 = Quoi faire ?"},"A donner","A partager","A partager","A donner","A porter seul","A porter seul","A porter seul","A donner","A porter seul","A donner"]

{"sheet":"A porter seul","index":1,"n_rows":3,"n_cols":5,"rows_kept":3,"cut":false,"hidden":false,"merged":[]}
[null,"Tableau 1 = synthèse de sous-actions à porter seul :"]
[]
[null,"Costume n°","Nom du rôle-costume","Action","Sous-actions à réaliser vous-même"]

{"sheet":"A partager","index":2,"n_rows":3,"n_cols":5,"rows_kept":3,"cut":false,"hidden":false,"merged":[]}
[null,"Tableau 2 = synthèse de sous-actions à partager :"]
[]
[null,"Costume n°","Nom du rôle-costume","Action","Sous-actions à partager avec d'autres personnes"]

{"sheet":"A donner","index":3,"n_rows":3,"n_cols":5,"rows_kept":3,"cut":false,"hidden":false,"merged":[]}
[null,"Tableau 3 = synthèse de sous-actions à donner :"]
[]
[null,"Costume n°","Nom du rôle-costume","Action","Sous-actions à donner à d'autres personnes"]